Departmental Family,Entity,Date,Expense Type,Expense Area,Supplier,Transaction Number,Amount,Vat Registration Num
Department of Health,Department of Health,01/08/2011,Printing,HPIH & SD,CENTRAL OFFICE OF INFORMATION (COI),735625,510,
Department of Health,Department of Health,01/08/2011,Storage costs,"PSF POLICY, STRATEGY & FINANCE",TEVA UK LTD,2310211612,803.38,
Department of Health,Department of Health,01/08/2011,Printing,HPIH & SD,CENTRAL OFFICE OF INFORMATION (COI),735625,8960,
Department of Health,Department of Health,01/08/2011,Printing,HPIH & SD,CENTRAL OFFICE OF INFORMATION (COI),735625,18908,
Department of Health,Department of Health,01/08/2011,Outsourcing Contract,COMMUNICATIONS,CENTRAL OFFICE OF INFORMATION (COI),735699,29921.66,
Department of Health,Department of Health,01/08/2011,Contactor/ Staff Subsitution,COMMISSIONING,R B B ECONOMICS LLP,LLP09746,34560,
Department of Health,Department of Health,01/08/2011,Travel -Trains,CDD CORPORATE DEVELOPMENT,FCM TRAVEL SOLUTIONS,1049604241,61749.13,
Department of Health,Department of Health,01/08/2011,Outsourcing Contract,NHS Improvement and Efficiency,PRICEWATERHOUSECOOPERS LLP,1353620838,103504.8,
Department of Health,Department of Health,01/08/2011,Storage costs,"PSF POLICY, STRATEGY & FINANCE",TEVA UK LTD,2310211612,"247,456.62",
Department of Health,Department of Health,01/08/2011,CASH FUNDING Rev Inside RAB,NHS FC,NATIONAL TREATMENT AGENCY FOR SUBSTANCE MISUSE (NTA),HAFS-11154,"500,000",
Department of Health,Department of Health,01/08/2011,Storage costs,"PSF POLICY, STRATEGY & FINANCE",BAXTER HEALTHCARE LTD,32007067,"680,446.86",
Department of Health,Department of Health,01/08/2011,Programme Revenue Grant in Aid to ENDPBs,WORKFORCE,GENERAL SOCIAL CARE COUNCIL (GSCC),ERS-437929-50301,1107400,
Department of Health,Department of Health,01/08/2011,CASH FUNDING Rev Inside RAB,NHS FC,HEALTH AND SOCIAL CARE INFORMATION CENTRE,HAFS-11124,"1,500,000",
Department of Health,Department of Health,01/08/2011,CASH FUNDING Rev Inside RAB,NHS FC,NATIONAL PATIENT SAFETY AGENCY (NPSA),HAFS-11153,"1,500,000",
Department of Health,Department of Health,01/08/2011,CASH FUNDING Rev Inside RAB,NHS FC,NATIONAL INSTITUTE FOR CLINICAL EXCELLENCE (NICE),HAFS-11152,"4,000,000",
Department of Health,Department of Health,01/08/2011,Additions FT Financing Facility Loans,NHS FC,DORSET COUNTY HOSPITAL NHS FOUNDATION TRUST,HAFS-11231,"5,300,000",
Department of Health,Department of Health,01/08/2011,CASH FUNDING Rev Inside RAB,NHS FC,DARLINGTON PCT,HAFS-11097,"11,644,000",
Department of Health,Department of Health,01/08/2011,CASH FUNDING Rev Inside RAB,NHS FC,BASSETLAW PCT,HAFS-11068,"12,500,000",
Department of Health,Department of Health,01/08/2011,CASH FUNDING Rev Inside RAB,NHS FC,HARTLEPOOL PCT,HAFS-11121,"12,700,000",
Department of Health,Department of Health,01/08/2011,CASH FUNDING Rev Inside RAB,NHS FC,SOUTH EAST COAST SHA,HAFS-11192,"15,000,000",
Department of Health,Department of Health,01/08/2011,CASH FUNDING Rev Inside RAB,NHS FC,TORBAY CARE TRUST,HAFS-11211,"15,000,000",
Department of Health,Department of Health,01/08/2011,CASH FUNDING Rev Inside RAB,NHS FC,ISLE OF WIGHT NHS PCT,HAFS-11132,"17,500,000",
Department of Health,Department of Health,01/08/2011,CASH FUNDING Rev Inside RAB,NHS FC,TELFORD & WREKIN PCT,HAFS-11210,"17,776,000",
Department of Health,Department of Health,01/08/2011,CASH FUNDING Rev Inside RAB,NHS FC,BATH & NORTH EAST SOMERSET PCT,HAFS-11069,"18,000,000",
Department of Health,Department of Health,01/08/2011,CASH FUNDING Rev Inside RAB,NHS FC,MIDDLESBOROUGH PCT,HAFS-11150,"18,350,000",
Department of Health,Department of Health,01/08/2011,CASH FUNDING Rev Inside RAB,NHS FC,NORTH EAST LINCOLNSHIRE CARE TRUST PLUS,HAFS-11161,"18,450,000",
Department of Health,Department of Health,01/08/2011,CASH FUNDING Rev Inside RAB,NHS FC,KINGSTON PCT,HAFS-11135,"18,500,000",
Department of Health,Department of Health,01/08/2011,CASH FUNDING Rev Inside RAB,NHS FC,NORTH LINCOLNSHIRE PCT,HAFS-11164,"18,500,000",
Department of Health,Department of Health,01/08/2011,CASH FUNDING Rev Inside RAB,NHS FC,BLACKPOOL PCT,HAFS-11076,"18,605,000",
Department of Health,Department of Health,01/08/2011,CASH FUNDING Rev Inside RAB,NHS FC,REDCAR AND CLEVELAND PCT,HAFS-11180,"19,000,000",
Department of Health,Department of Health,01/08/2011,CASH FUNDING Rev Inside RAB,NHS FC,STOCKTON-ON-TEES TEACHING PCT,HAFS-11202,"20,800,000",
Department of Health,Department of Health,01/08/2011,CASH FUNDING Rev Inside RAB,NHS FC,HEREFORDSHIRE PCT,HAFS-11126,"21,000,000",
Department of Health,Department of Health,01/08/2011,CASH FUNDING Rev Inside RAB,NHS FC,BLACKBURN AND DARWEN TEACHING CARE TRUST PLUS,HAFS-11075,"21,003,000",
Department of Health,Department of Health,01/08/2011,CASH FUNDING Rev Inside RAB,NHS FC,PETERBOROUGH PCT,HAFS-11176,"22,000,000",
Department of Health,Department of Health,01/08/2011,CASH FUNDING Rev Inside RAB,NHS FC,PORTSMOUTH CITY TEACHING PCT,HAFS-11178,"22,000,000",
Department of Health,Department of Health,01/08/2011,CASH FUNDING Rev Inside RAB,NHS FC,RICHMOND AND TWICKENHAM PCT,HAFS-11181,"22,000,000",
Department of Health,Department of Health,01/08/2011,CASH FUNDING Rev Inside RAB,NHS FC,SWINDON PCT,HAFS-11208,"22,000,000",
Department of Health,Department of Health,01/08/2011,CASH FUNDING Rev Inside RAB,NHS FC,BURY PCT,HAFS-11085,"22,500,000",
Department of Health,Department of Health,01/08/2011,CASH FUNDING Rev Inside RAB,NHS FC,BARKING AND DAGENHAM PCT,HAFS-11065,"23,000,000",
Department of Health,Department of Health,01/08/2011,CASH FUNDING Rev Inside RAB,NHS FC,WARRINGTON PCT,HAFS-11218,"23,100,000",
Department of Health,Department of Health,01/08/2011,CASH FUNDING Rev Inside RAB,NHS FC,NORTH SOMERSET PCT,HAFS-11165,"23,500,000",
Department of Health,Department of Health,01/08/2011,CASH FUNDING Rev Inside RAB,NHS FC,SOUTH TYNESIDE PCT,HAFS-11196,"23,700,000",
Department of Health,Department of Health,01/08/2011,CASH FUNDING Rev Inside RAB,NHS FC,CALDERDALE PCT,HAFS-11086,"24,000,000",
Department of Health,Department of Health,01/08/2011,CASH FUNDING Rev Inside RAB,NHS FC,HASTINGS & ROTHER PCT,HAFS-11122,"24,000,000",
Department of Health,Department of Health,01/08/2011,CASH FUNDING Rev Inside RAB,NHS FC,NORTH STAFFORDSHIRE PCT,HAFS-11166,"24,000,000",
Department of Health,Department of Health,01/08/2011,CASH FUNDING Rev Inside RAB,NHS FC,SOUTHAMPTON CITY PCT,HAFS-11199,"24,000,000",
Department of Health,Department of Health,01/08/2011,CASH FUNDING Rev Inside RAB,NHS FC,LUTON TEACHING PCT,HAFS-11146,"24,200,000",
Department of Health,Department of Health,01/08/2011,CASH FUNDING Rev Inside RAB,NHS FC,SOLIHULL PCT,HAFS-11188,"24,500,000",
Department of Health,Department of Health,01/08/2011,CASH FUNDING Rev Inside RAB,NHS FC,KNOWSLEY PCT,HAFS-11137,"24,900,000",
Department of Health,Department of Health,01/08/2011,CASH FUNDING Rev Inside RAB,NHS FC,EAST MIDLANDS SHA,HAFS-11106,"25,000,000",
Department of Health,Department of Health,01/08/2011,CASH FUNDING Rev Inside RAB,NHS FC,KENSINGTON AND CHELSEA PCT,HAFS-11134,"25,000,000",
Department of Health,Department of Health,01/08/2011,CASH FUNDING Rev Inside RAB,NHS FC,MILTON KEYNES PCT,HAFS-11151,"25,000,000",
Department of Health,Department of Health,01/08/2011,CASH FUNDING Rev Inside RAB,NHS FC,SOUTH GLOUCESTERSHIRE PCT,HAFS-11194,"25,500,000",
Department of Health,Department of Health,01/08/2011,CASH FUNDING Rev Inside RAB,NHS FC,NORTH EAST SHA,HAFS-11162,"25,700,000",
Department of Health,Department of Health,01/08/2011,CASH FUNDING Rev Inside RAB,NHS FC,BEXLEY CARE TRUST,HAFS-11073,"26,000,000",
Department of Health,Department of Health,01/08/2011,CASH FUNDING Rev Inside RAB,NHS FC,HARROW PCT,HAFS-11120,"26,000,000",
Department of Health,Department of Health,01/08/2011,CASH FUNDING Rev Inside RAB,NHS FC,HAMMERSMITH AND FULHAM PCT,HAFS-11117,"26,500,000",
Department of Health,Department of Health,01/08/2011,CASH FUNDING Rev Inside RAB,NHS FC,SOUTH CENTRAL SHA,HAFS-11191,"26,500,000",
Department of Health,Department of Health,01/08/2011,CASH FUNDING Rev Inside RAB,NHS FC,NORTH TYNESIDE PCT,HAFS-11167,"27,300,000",
Department of Health,Department of Health,01/08/2011,CASH FUNDING Rev Inside RAB,NHS FC,GREAT YARMOUTH AND WAVENY PCT,HAFS-11114,"28,046,000",
Department of Health,Department of Health,01/08/2011,CASH FUNDING Rev Inside RAB,NHS FC,NHS BUSINESS SERVICES AUTHORITY (NHSBSA),HAFS-11157,"28,150,000",
Department of Health,Department of Health,01/08/2011,CASH FUNDING Rev Inside RAB,NHS FC,REDBRIDGE PCT,HAFS-11179,"28,500,000",
Department of Health,Department of Health,01/08/2011,CASH FUNDING Rev Inside RAB,NHS FC,SOUTH WEST SHA,HAFS-11198,"28,500,000",
Department of Health,Department of Health,01/08/2011,CASH FUNDING Rev Inside RAB,NHS FC,HAVERING PCT COMMISSIONING,HAFS-11123,"29,000,000",
Department of Health,Department of Health,01/08/2011,CASH FUNDING Rev Inside RAB,NHS FC,HEYWOOD MIDDLETON & ROCHDALE PCT,HAFS-11128,"29,000,000",
Department of Health,Department of Health,01/08/2011,CASH FUNDING Rev Inside RAB,NHS FC,MEDWAY TEACHING PCT,HAFS-11148,"29,000,000",
Department of Health,Department of Health,01/08/2011,CASH FUNDING Rev Inside RAB,NHS FC,TAMESIDE AND GLOSSOP PCT,HAFS-11209,"29,000,000",
Department of Health,Department of Health,01/08/2011,CASH FUNDING Rev Inside RAB,NHS FC,TRAFFORD PCT,HAFS-11213,"29,000,000",
Department of Health,Department of Health,01/08/2011,CASH FUNDING Rev Inside RAB,NHS FC,OLDHAM PCT,HAFS-11174,"30,000,000",
Department of Health,Department of Health,01/08/2011,CASH FUNDING Rev Inside RAB,NHS FC,WALTHAM FOREST PCT,HAFS-11216,"30,000,000",
Department of Health,Department of Health,01/08/2011,CASH FUNDING Rev Inside RAB,NHS FC,NEWCASTLE PCT,HAFS-11155,"30,200,000",
Department of Health,Department of Health,01/08/2011,CASH FUNDING Rev Inside RAB,NHS FC,HILLINGDON PCT,HAFS-11129,"31,000,000",
Department of Health,Department of Health,01/08/2011,CASH FUNDING Rev Inside RAB,NHS FC,WEST ESSEX PCT,HAFS-11220,"31,000,000",
Department of Health,Department of Health,01/08/2011,CASH FUNDING Rev Inside RAB,NHS FC,NORTHUMBERLAND CARE TRUST,HAFS-11171,"31,300,000",
Department of Health,Department of Health,01/08/2011,CASH FUNDING Rev Inside RAB,NHS FC,DUDLEY PCT,HAFS-11103,"32,000,000",
Department of Health,Department of Health,01/08/2011,CASH FUNDING Rev Inside RAB,NHS FC,GATESHEAD PCT,HAFS-11112,"32,000,000",
Department of Health,Department of Health,01/08/2011,CASH FUNDING Rev Inside RAB,NHS FC,HOUNSLOW PCT,HAFS-11130,"32,000,000",
Department of Health,Department of Health,01/08/2011,CASH FUNDING Rev Inside RAB,NHS FC,STOCKPORT PCT,HAFS-11201,"32,000,000",
Department of Health,Department of Health,01/08/2011,CASH FUNDING Rev Inside RAB,NHS FC,DERBY CITY PCT,HAFS-11098,"33,500,000",
Department of Health,Department of Health,01/08/2011,CASH FUNDING Rev Inside RAB,NHS FC,ROTHERHAM PCT,HAFS-11182,"33,500,000",
Department of Health,Department of Health,01/08/2011,CASH FUNDING Rev Inside RAB,NHS FC,BROMLEY PCT,HAFS-11083,"33,750,000",
Department of Health,Department of Health,01/08/2011,CASH FUNDING Rev Inside RAB,NHS FC,SHROPSHIRE COUNTY PCT,HAFS-11187,"33,946,000",
Department of Health,Department of Health,01/08/2011,CASH FUNDING Rev Inside RAB,NHS FC,ENFIELD PCT,HAFS-11111,"34,000,000",
Department of Health,Department of Health,01/08/2011,CASH FUNDING Rev Inside RAB,NHS FC,LEWISHAM PCT,HAFS-11142,"34,000,000",
Department of Health,Department of Health,01/08/2011,CASH FUNDING Rev Inside RAB,NHS FC,PLYMOUTH TEACHING PCT,HAFS-11177,"34,000,000",
Department of Health,Department of Health,01/08/2011,CASH FUNDING Rev Inside RAB,NHS FC,SEFTON PCT,HAFS-11185,"34,000,000",
Department of Health,Department of Health,01/08/2011,CASH FUNDING Rev Inside RAB,NHS FC,TOWER HAMLETS PCT,HAFS-11212,"34,000,000",
Department of Health,Department of Health,01/08/2011,CASH FUNDING Rev Inside RAB,NHS FC,HULL PCT,HAFS-11131,"34,400,000",
Department of Health,Department of Health,01/08/2011,CASH FUNDING Rev Inside RAB,NHS FC,COVENTRY TEACHING PCT,HAFS-11094,"35,000,000",
Department of Health,Department of Health,01/08/2011,CASH FUNDING Rev Inside RAB,NHS FC,CROYDON PCT,HAFS-11095,"35,000,000",
Department of Health,Department of Health,01/08/2011,CASH FUNDING Rev Inside RAB,NHS FC,SALFORD PCT,HAFS-11183,"35,000,000",
Department of Health,Department of Health,01/08/2011,CASH FUNDING Rev Inside RAB,NHS FC,WOLVERHAMPTON CITY PCT,HAFS-11228,"35,000,000",
Department of Health,Department of Health,01/08/2011,CASH FUNDING Rev Inside RAB,NHS FC,SUNDERLAND TEACHING PCT,HAFS-11205,"35,800,000",
Department of Health,Department of Health,01/08/2011,CASH FUNDING Rev Inside RAB,NHS FC,BOLTON PCT,HAFS-11077,"36,000,000",
Department of Health,Department of Health,01/08/2011,CASH FUNDING Rev Inside RAB,NHS FC,BRIGHTON & HOVE CITY TEACHING PCT,HAFS-11081,"36,000,000",
Department of Health,Department of Health,01/08/2011,CASH FUNDING Rev Inside RAB,NHS FC,CAMDEN PCT,HAFS-11088,"36,000,000",
Department of Health,Department of Health,01/08/2011,CASH FUNDING Rev Inside RAB,NHS FC,DONCASTER PCT,HAFS-11101,"36,000,000",
Department of Health,Department of Health,01/08/2011,CASH FUNDING Rev Inside RAB,NHS FC,GREENWICH TEACHING PCT,HAFS-11115,"36,000,000",
Department of Health,Department of Health,01/08/2011,CASH FUNDING Rev Inside RAB,NHS FC,ISLINGTON PCT,HAFS-11133,"36,000,000",
Department of Health,Department of Health,01/08/2011,CASH FUNDING Rev Inside RAB,NHS FC,STOKE ON TRENT PCT,HAFS-11203,"36,000,000",
Department of Health,Department of Health,01/08/2011,CASH FUNDING Rev Inside RAB,NHS FC,WALSALL TEACHING PCT,HAFS-11215,"36,500,000",
Department of Health,Department of Health,01/08/2011,CASH FUNDING Rev Inside RAB,NHS FC,WESTERN CHESHIRE PCT,HAFS-11224,"36,500,000",
Department of Health,Department of Health,01/08/2011,CASH FUNDING Rev Inside RAB,NHS FC,EAST RIDING OF YORKSHIRE PCT,HAFS-11108,"37,000,000",
Department of Health,Department of Health,01/08/2011,CASH FUNDING Rev Inside RAB,NHS FC,"ASHTON, LEIGH & WIGAN PCT",HAFS-11064,"38,000,000",
Department of Health,Department of Health,01/08/2011,CASH FUNDING Rev Inside RAB,NHS FC,HALTON & ST HELENS PCT,HAFS-11116,"38,000,000",
Department of Health,Department of Health,01/08/2011,CASH FUNDING Rev Inside RAB,NHS FC,HEART OF BIRMINGHAM TEACHING PCT,HAFS-11125,"38,000,000",
Department of Health,Department of Health,01/08/2011,CASH FUNDING Rev Inside RAB,NHS FC,LEICESTER CITY PCT,HAFS-11140,"38,000,000",
Department of Health,Department of Health,01/08/2011,CASH FUNDING Rev Inside RAB,NHS FC,NORTH EAST ESSEX PCT,HAFS-11160,"38,000,000",
Department of Health,Department of Health,01/08/2011,CASH FUNDING Rev Inside RAB,NHS FC,BRENT TEACHING PCT,HAFS-11080,"39,000,000",
Department of Health,Department of Health,01/08/2011,CASH FUNDING Rev Inside RAB,NHS FC,NORTH LANCASHIRE PCT,HAFS-11163,"39,301,000",
Department of Health,Department of Health,01/08/2011,CASH FUNDING Rev Inside RAB,NHS FC,BOURNEMOUTH & POOLE PCT,HAFS-11078,"39,500,000",
Department of Health,Department of Health,01/08/2011,CASH FUNDING Rev Inside RAB,NHS FC,BERKSHIRE EAST PCT,HAFS-11071,"39,644,000",
Department of Health,Department of Health,01/08/2011,CASH FUNDING Rev Inside RAB,NHS FC,BARNSLEY PCT,HAFS-11067,"40,000,000",
Department of Health,Department of Health,01/08/2011,CASH FUNDING Rev Inside RAB,NHS FC,SANDWELL PCT,HAFS-11184,"40,000,000",
Department of Health,Department of Health,01/08/2011,CASH FUNDING Rev Inside RAB,NHS FC,SOUTHWARK PCT,HAFS-11200,"40,000,000",
Department of Health,Department of Health,01/08/2011,CASH FUNDING Rev Inside RAB,NHS FC,WESTMINSTER PCT,HAFS-11225,"40,000,000",
Department of Health,Department of Health,01/08/2011,CASH FUNDING Rev Inside RAB,NHS FC,CITY AND HACKNEY TEACHING PCT,HAFS-11091,"41,000,000",
Department of Health,Department of Health,01/08/2011,CASH FUNDING Rev Inside RAB,NHS FC,HARINGEY TEACHING PCT,HAFS-11119,"42,000,000",
Department of Health,Department of Health,01/08/2011,CASH FUNDING Rev Inside RAB,NHS FC,MID ESSEX PCT,HAFS-11149,"42,000,000",
Department of Health,Department of Health,01/08/2011,CASH FUNDING Rev Inside RAB,NHS FC,SUTTON AND MERTON PCT,HAFS-11207,"42,000,000",
Department of Health,Department of Health,01/08/2011,CASH FUNDING Rev Inside RAB,NHS FC,WANDSWORTH TEACHING PCT,HAFS-11217,"42,000,000",
Department of Health,Department of Health,01/08/2011,CASH FUNDING Rev Inside RAB,NHS FC,WEST MIDLANDS SHA,HAFS-11222,"42,100,000",
Department of Health,Department of Health,01/08/2011,CASH FUNDING Rev Inside RAB,NHS FC,SOUTH EAST ESSEX PCT,HAFS-11193,"43,000,000",
Department of Health,Department of Health,01/08/2011,CASH FUNDING Rev Inside RAB,NHS FC,BEDFORDSHIRE PCT,HAFS-11070,"44,000,000",
Department of Health,Department of Health,01/08/2011,CASH FUNDING Rev Inside RAB,NHS FC,EALING PCT,HAFS-11104,"44,000,000",
Department of Health,Department of Health,01/08/2011,CASH FUNDING Rev Inside RAB,NHS FC,EAST SUSSEX DOWNS & WEALD PCT,HAFS-11109,"45,000,000",
Department of Health,Department of Health,01/08/2011,CASH FUNDING Rev Inside RAB,NHS FC,YORKSHIRE & THE HUMBER SHA,HAFS-11230,"45,000,000",
Department of Health,Department of Health,01/08/2011,CASH FUNDING Rev Inside RAB,NHS FC,SOUTH BIRMINGHAM PCT,HAFS-11190,"45,750,000",
Department of Health,Department of Health,01/08/2011,CASH FUNDING Rev Inside RAB,NHS FC,EAST OF ENGLAND SHA,HAFS-11107,"46,000,000",
Department of Health,Department of Health,01/08/2011,CASH FUNDING Rev Inside RAB,NHS FC,NOTTINGHAM CITY PCT,HAFS-11172,"46,000,000",
Department of Health,Department of Health,01/08/2011,CASH FUNDING Rev Inside RAB,NHS FC,WAKEFIELD DISTRICT PCT,HAFS-11214,"46,000,000",
Department of Health,Department of Health,01/08/2011,CASH FUNDING Rev Inside RAB,NHS FC,WIRRAL PCT,HAFS-11227,"46,000,000",
Department of Health,Department of Health,01/08/2011,CASH FUNDING Rev Inside RAB,NHS FC,BERKSHIRE WEST PCT,HAFS-11072,"46,800,000",
Department of Health,Department of Health,01/08/2011,CASH FUNDING Rev Inside RAB,NHS FC,EAST LANCASHIRE PCT,HAFS-11105,"47,000,000",
Department of Health,Department of Health,01/08/2011,CASH FUNDING Rev Inside RAB,NHS FC,NEWHAM PCT,HAFS-11156,"47,000,000",
Department of Health,Department of Health,01/08/2011,CASH FUNDING Rev Inside RAB,NHS FC,SOUTH WEST ESSEX PCT,HAFS-11197,"47,000,000",
Department of Health,Department of Health,01/08/2011,CASH FUNDING Rev Inside RAB,NHS FC,BUCKINGHAMSHIRE PCT,HAFS-11084,"47,500,000",
Department of Health,Department of Health,01/08/2011,CASH FUNDING Rev Inside RAB,NHS FC,DORSET PCT,HAFS-11102,"48,000,000",
Department of Health,Department of Health,01/08/2011,CASH FUNDING Rev Inside RAB,NHS FC,CENTRAL & EASTERN CHESHIRE PCT,HAFS-11089,"49,000,000",
Department of Health,Department of Health,01/08/2011,CASH FUNDING Rev Inside RAB,NHS FC,KIRKLEES PCT,HAFS-11136,"50,000,000",
Department of Health,Department of Health,01/08/2011,CASH FUNDING Rev Inside RAB,NHS FC,WARWICKSHIRE PCT,HAFS-11219,"51,000,000",
Department of Health,Department of Health,01/08/2011,CASH FUNDING Rev Inside RAB,NHS FC,BIRMINGHAM EAST AND NORTH PCT,HAFS-11074,"52,000,000",
Department of Health,Department of Health,01/08/2011,CASH FUNDING Rev Inside RAB,NHS FC,WILTSHIRE PCT,HAFS-11226,"52,000,000",
Department of Health,Department of Health,01/08/2011,CASH FUNDING Rev Inside RAB,NHS FC,BARNET PCT,HAFS-11066,"52,500,000",
Department of Health,Department of Health,01/08/2011,CASH FUNDING Rev Inside RAB,NHS FC,LAMBETH PCT,HAFS-11138,"53,000,000",
Department of Health,Department of Health,01/08/2011,CASH FUNDING Rev Inside RAB,NHS FC,WORCESTERSHIRE PCT,HAFS-11229,"54,000,000",
Department of Health,Department of Health,01/08/2011,CASH FUNDING Rev Inside RAB,NHS FC,BRISTOL PCT,HAFS-11082,"55,000,000",
Department of Health,Department of Health,01/08/2011,CASH FUNDING Rev Inside RAB,NHS FC,CENTRAL LANCASHIRE PCT,HAFS-11090,"58,000,000",
Department of Health,Department of Health,01/08/2011,CASH FUNDING Rev Inside RAB,NHS FC,GLOUCESTERSHIRE PCT,HAFS-11113,"62,000,000",
Department of Health,Department of Health,01/08/2011,CASH FUNDING Rev Inside RAB,NHS FC,BRADFORD AND AIREDALE PCT,HAFS-11079,"63,000,000",
Department of Health,Department of Health,01/08/2011,CASH FUNDING Rev Inside RAB,NHS FC,CUMBRIA PCT,HAFS-11096,"63,000,000",
Department of Health,Department of Health,01/08/2011,CASH FUNDING Rev Inside RAB,NHS FC,OXFORDSHIRE PCT,HAFS-11175,"65,000,000",
Department of Health,Department of Health,01/08/2011,CASH FUNDING Rev Inside RAB,NHS FC,SOMERSET PCT,HAFS-11189,"65,250,000",
Department of Health,Department of Health,01/08/2011,CASH FUNDING Rev Inside RAB,NHS FC,NORTH WEST SHA,HAFS-11168,"65,600,000",
Department of Health,Department of Health,01/08/2011,CASH FUNDING Rev Inside RAB,NHS FC,LIVERPOOL PCT,HAFS-11144,"69,385,000",
Department of Health,Department of Health,01/08/2011,CASH FUNDING Rev Inside RAB,NHS FC,CORNWALL & ISLES OF SCILLY PCT,HAFS-11092,"70,200,000",
Department of Health,Department of Health,01/08/2011,CASH FUNDING Rev Inside RAB,NHS FC,MANCHESTER PCT,HAFS-11147,"72,500,000",
Department of Health,Department of Health,01/08/2011,CASH FUNDING Rev Inside RAB,NHS FC,CAMBRIDGESHIRE PCT,HAFS-11087,"73,000,000",
Department of Health,Department of Health,01/08/2011,CASH FUNDING Rev Inside RAB,NHS FC,COUNTY DURHAM PCT,HAFS-11093,"74,032,000",
Department of Health,Department of Health,01/08/2011,CASH FUNDING Rev Inside RAB,NHS FC,NORTHAMPTONSHIRE PCT,HAFS-11170,"75,000,000",
Department of Health,Department of Health,01/08/2011,CASH FUNDING Rev Inside RAB,NHS FC,SOUTH STAFFORDSHIRE PCT,HAFS-11195,"75,300,000",
Department of Health,Department of Health,01/08/2011,CASH FUNDING Rev Inside RAB,NHS FC,SHEFFIELD PCT,HAFS-11186,"76,000,000",
Department of Health,Department of Health,01/08/2011,CASH FUNDING Rev Inside RAB,NHS FC,WEST KENT PCT,HAFS-11221,"76,000,000",
Department of Health,Department of Health,01/08/2011,CASH FUNDING Rev Inside RAB,NHS FC,LEICESTERSHIRE COUNTY & RUTLAND PCT,HAFS-11141,"80,000,000",
Department of Health,Department of Health,01/08/2011,CASH FUNDING Rev Inside RAB,NHS FC,SUFFOLK PCT,HAFS-11204,"80,000,000",
Department of Health,Department of Health,01/08/2011,CASH FUNDING Rev Inside RAB,NHS FC,NOTTINGHAMSHIRE COUNTY TEACHING PCT,HAFS-11173,"83,000,000",
Department of Health,Department of Health,01/08/2011,CASH FUNDING Rev Inside RAB,NHS FC,LINCOLNSHIRE PCT,HAFS-11143,"86,000,000",
Department of Health,Department of Health,01/08/2011,CASH FUNDING Rev Inside RAB,NHS FC,NORFOLK PCT,HAFS-11159,"86,000,000",
Department of Health,Department of Health,01/08/2011,CASH FUNDING Rev Inside RAB,NHS FC,DERBYSHIRE COUNTY PCT,HAFS-11099,"89,000,000",
Department of Health,Department of Health,01/08/2011,CASH FUNDING Rev Inside RAB,NHS FC,WEST SUSSEX PCT,HAFS-11223,"93,000,000",
Department of Health,Department of Health,01/08/2011,CASH FUNDING Rev Inside RAB,NHS FC,LEEDS PCT,HAFS-11139,"93,451,000",
Department of Health,Department of Health,01/08/2011,CASH FUNDING Rev Inside RAB,NHS FC,DEVON PCT,HAFS-11100,"94,000,000",
Department of Health,Department of Health,01/08/2011,CASH FUNDING Rev Inside RAB,NHS FC,NORTH YORKSHIRE & YORK PCT,HAFS-11169,"94,700,000",
Department of Health,Department of Health,01/08/2011,CASH FUNDING Rev Inside RAB,NHS FC,EASTERN & COASTAL KENT PCT,HAFS-11110,"95,000,000",
Department of Health,Department of Health,01/08/2011,CASH FUNDING Rev Inside RAB,NHS FC,HERTFORDSHIRE PCT,HAFS-11127,"113,000,000",
Department of Health,Department of Health,01/08/2011,CASH FUNDING Rev Inside RAB,NHS FC,SURREY PCT,HAFS-11206,"122,000,000",
Department of Health,Department of Health,01/08/2011,CASH FUNDING Rev Inside RAB,NHS FC,HAMPSHIRE PCT,HAFS-11118,"134,200,000",
Department of Health,Department of Health,01/08/2011,CASH FUNDING Rev Inside RAB,NHS FC,LONDON SHA,HAFS-11145,"161,000,000",
Department of Health,Department of Health,01/08/2011,CASH FUNDING Rev ND In RAB,NHS FC,NHS BUSINESS SERVICES AUTHORITY (NHSBSA),HAFS-11158,"983,000,000",
Department of Health,Department of Health,02-Aug-11,SYS VAT Non recoverable,Informatics,CSA (WAVERLEY ) LTD,13353412,-0.01,
Department of Health,Department of Health,02/08/2011,Travel -Trains,CDD CORPORATE DEVELOPMENT,FCM TRAVEL SOLUTIONS,1049604648,215.75,
Department of Health,Department of Health,02/08/2011,Addition Clearing - SW LIC,INFORMATICS,I SOFT PLC,INV/006164,683.36,
Department of Health,Department of Health,02/08/2011,Service charge,INFORMATICS,MICROTEST LTD,74624,769.74,
Department of Health,Department of Health,02/08/2011,Addition Clearing - SW LIC,INFORMATICS,MICROTEST LTD,74624,1644.77,
Department of Health,Department of Health,02-Aug-11,Computer Software/License,Informatics,CSA (WAVERLEY ) LTD,13353412,6518.57,
Department of Health,Department of Health,02/08/2011,Printing,CDD CORPORATE DEVELOPMENT,XEROX BUSINESS SERVICES,900079550,16674.7,
Department of Health,Department of Health,02/08/2011,Printing,CDD CORPORATE DEVELOPMENT,XEROX BUSINESS SERVICES,900079550,20740.71,
Department of Health,Department of Health,02/08/2011,Other staff benefits,"PSF POLICY, STRATEGY & FINANCE",HM TREASURY (HMT),26473,"27,138.00",
Department of Health,Department of Health,02/08/2011,Outsourcing Contract,COMMUNICATIONS,CENTRAL OFFICE OF INFORMATION (COI),735716,36030,
Department of Health,Department of Health,02/08/2011,Secondees in invoiced costs,COMMISSIONING,LONDON SHA,19522696,38408.44,
Department of Health,Department of Health,02-Aug-11,Staff Consultancy & Suppt,Informatics,PA CONSULTING SERVICES LTD,13379033,41604.2,
Department of Health,Department of Health,02/08/2011,Outsourcing Contract,HPIH & SD,THE MET OFFICE,G000057589,44340,
Department of Health,Department of Health,02/08/2011,Publicity & advertising,COMMUNICATIONS,CENTRAL OFFICE OF INFORMATION (COI),735723,45499.4,
Department of Health,Department of Health,02-Aug-11,Computer Maintenance,Informatics,CSA (WAVERLEY ) LTD,13353412,46288.78,
Department of Health,Department of Health,02/08/2011,Travel -Trains,CDD CORPORATE DEVELOPMENT,FCM TRAVEL SOLUTIONS,1049604648,47243.42,
Department of Health,Department of Health,02/08/2011,Secondees in invoiced costs,NHS MEDICAL DIRECTOR,YORK TEACHING HOSPITAL NHS FOUNDATION TRUST,10036826,57850,
Department of Health,Department of Health,02/08/2011,Addition Clearing - SW LIC,INFORMATICS,CSC COMPUTER SCIENCES LTD,5201245112,150809.41,
Department of Health,Department of Health,02-Aug-11,Computer Software/License,Informatics,CSA (WAVERLEY ) LTD,13353412,152667.46,
Department of Health,Department of Health,02/08/2011,Other programme expenditure,HPIH & SD,DEPARTMENT FOR WORK AND PENSIONS (DWP),2869330,175000,
Department of Health,Department of Health,02/08/2011,Outsourcing Contract,SOCIAL CARE,BRISTOL UNIVERSITY OF,FSSL1001009,182500,
Department of Health,Department of Health,02/08/2011,Grants to non profit institutions (CUR),SOCIAL CARE,TRINITY HOSPICE AND PALLIATIVE CARE SERVICES,ERS-438079-50321,190302,
Department of Health,Department of Health,02/08/2011,Addition Clearing - IT,INFORMATICS,MICROTEST LTD,74624,251650.78,
Department of Health,Department of Health,02/08/2011,Addition Clearing - IT,INFORMATICS,CSC COMPUTER SCIENCES LTD,5201245112,288295.43,
Department of Health,Department of Health,02/08/2011,Outsourcing Contract,NHS Improvement and Efficiency,South of England Advocacy Projects,SIN002104,291111.5,
Department of Health,Department of Health,02/08/2011,Outsourcing Contract,NHS Improvement and Efficiency,CARERS FEDERATION LTD,1600,330416.67,
Department of Health,Department of Health,02/08/2011,Rates,CDD CORPORATE DEVELOPMENT,SOUTHWARK LONDON BOROUGH COUNCIL,NN25560080000001/08/03/11,493770,
Department of Health,Department of Health,02/08/2011,Addition Clearing - IT,INFORMATICS,I SOFT PLC,INV/006164,743694.69,
Department of Health,Department of Health,02-Aug-11,Contr Other External,Informatics,CAPITA BUSINESS SERVICES LTD,13402587,2072417.77,
Department of Health,Department of Health,03-Aug-11,Staff Consultancy & Suppt,Informatics,PA CONSULTING SERVICES LTD,13362533,23430,
Department of Health,Department of Health,03-Aug-11,Staff Consultancy & Suppt,Informatics,PA CONSULTING SERVICES LTD,13362537,23430,
Department of Health,Department of Health,03/08/2011,Stock Essential Medicines Additions,"PSF POLICY, STRATEGY & FINANCE",DEXCEL PHARMA LTD,1092941,"26,886.49",
Department of Health,Department of Health,03-Aug-11,Staff Consultancy & Suppt,Informatics,PA CONSULTING SERVICES LTD,13362536,27500,
Department of Health,Department of Health,03/08/2011,Secondees in invoiced costs,HPIH & SD,WESTERN CHESHIRE PCT,8262875,27841.21,
Department of Health,Department of Health,03-Aug-11,Staff Consultancy & Suppt,Informatics,PA CONSULTING SERVICES LTD,13362531,35200,
Department of Health,Department of Health,03-Aug-11,Staff Consultancy & Suppt,Informatics,PA CONSULTING SERVICES LTD,13362532,35200,
Department of Health,Department of Health,03/08/2011,Grants to non profit institutions (CUR),SOCIAL CARE,GENETIC INTEREST GROUP LTD,ERS-438213-50342,36511.5,
Department of Health,Department of Health,03/08/2011,Service charge,INFORMATICS,BT GROUP PLC,272321,38607.24,
Department of Health,Department of Health,03/08/2011,Travel -Trains,CDD CORPORATE DEVELOPMENT,FCM TRAVEL SOLUTIONS,1049604674,40570.63,
Department of Health,Department of Health,03/08/2011,Stock Essential Medicines Additions,"PSF POLICY, STRATEGY & FINANCE",DEXCEL PHARMA LTD,1092940,"41,088.56",
Department of Health,Department of Health,03/08/2011,Stock Essential Medicines Additions,"PSF POLICY, STRATEGY & FINANCE",DEXCEL PHARMA LTD,1092938,"41,820.36",
Department of Health,Department of Health,03-Aug-11,Staff Consultancy & Suppt,Informatics,CAPGEMINI UK PLC,13322297,47334.89,
Department of Health,Department of Health,03/08/2011,Outsourcing Contract,CDD CORPORATE DEVELOPMENT,CABINET OFFICE,250003016,48009.42,
Department of Health,Department of Health,03/08/2011,Travel -Trains,CDD CORPORATE DEVELOPMENT,FCM TRAVEL SOLUTIONS,1049604581,61582.69,
Department of Health,Department of Health,03/08/2011,Grants to non profit institutions (CUR),SOCIAL CARE,CANCER RESEARCH UK,ERS-438208-50341,76500,
Department of Health,Department of Health,03/08/2011,Service charge,INFORMATICS,BT GROUP PLC,272961,82309.26,
Department of Health,Department of Health,03/08/2011,Service charge,INFORMATICS,BT GROUP PLC,272260,107508.44,
Department of Health,Department of Health,03/08/2011,Programme Revenue Grant in Aid to ENDPBs,SOCIAL CARE,YORK UNIVERSITY OF,53033,123278.6,
Department of Health,Department of Health,03/08/2011,Service charge,INFORMATICS,BT GROUP PLC,272886,125011.25,
Department of Health,Department of Health,03/08/2011,Service charge,INFORMATICS,BT GROUP PLC,272942PART PAYT,129706.53,
Department of Health,Department of Health,03/08/2011,Service charge,INFORMATICS,BT GROUP PLC,272895,134294.14,
Department of Health,Department of Health,03/08/2011,Other programme expenditure,SOCIAL CARE,SQW CONSULTING LTD,16318,153933,
Department of Health,Department of Health,03/08/2011,Service charge,INFORMATICS,BT GROUP PLC,272272,170809.47,
Department of Health,Department of Health,03/08/2011,Outsourcing Contract,HPIH & SD,LIVERPOOL JOHN MOORES UNIVERSITY,501926,221616,
Department of Health,Department of Health,03/08/2011,Service charge,INFORMATICS,BT GROUP PLC,CHAPS03/08/11,230506.04,
Department of Health,Department of Health,03/08/2011,Publicity & advertising,COMMUNICATIONS,CENTRAL OFFICE OF INFORMATION (COI),735747,274999.98,
Department of Health,Department of Health,03/08/2011,Service charge,INFORMATICS,BT GROUP PLC,272905PART PAYT,1952314.45,
Department of Health,Department of Health,04-Aug-11,Contr Other External,Informatics,CABLE & WIRELESS UK,13402519,-161808,
Department of Health,Department of Health,04-Aug-11,Contr Other External,Informatics,CABLE & WIRELESS UK,13402522,-88192,
Department of Health,Department of Health,04-Aug-11,Furniture & Fittings,Informatics,SENATOR SECURITY SYSTEMS LTD,13353393,-33768,
Department of Health,Department of Health,04/08/2011,Facilities management: contract,CDD CORPORATE DEVELOPMENT,EMCOR FACILITIES SERVICES LTD,00202158RI,21487.62,
Department of Health,Department of Health,04-Aug-11,External Consultancy Fees,Informatics,GS1 UK,13402594,22719,
Department of Health,Department of Health,04-Aug-11,External Consultancy Fees,Informatics,CABLE & WIRELESS UK,13409758,25383.94,
Department of Health,Department of Health,04/08/2011,Rent of Land & Buildings (non-PFI operating lease),NHS FINANCE PERFORMANCE & OPERATIONS,BEACHCROFT LLP,CHAPS/3847,28445.2,
Department of Health,Department of Health,04/08/2011,Grants to non profit institutions (CUR),SOCIAL CARE,THE ACE CENTRE NORTH,ERS-438263-50361,29524.5,
Department of Health,Department of Health,04/08/2011,Contactor/ Staff Subsitution,COMMISSIONING,ADVANTAGE TECHNICAL RESOURCING LTD,30259168,30240,
Department of Health,Department of Health,04-Aug-11,Contr Other External,Informatics,CABLE & WIRELESS UK,13379027,33056.98,
Department of Health,Department of Health,04-Aug-11,Furniture & Fittings,Informatics,SENATOR SECURITY SYSTEMS LTD,12756667,33768,
Department of Health,Department of Health,04/08/2011,Publicity & advertising,HPIH & SD,CENTRAL OFFICE OF INFORMATION (COI),735779,42825,
Department of Health,Department of Health,04-Aug-11,Contr Other External,Informatics,CABLE & WIRELESS UK,13299251,77445.78,
Department of Health,Department of Health,04/08/2011,Outsourcing Contract,"PSF POLICY, STRATEGY & FINANCE",SPIRE HEALTHCARE LTD,CM090262,"94,409.47",
Department of Health,Department of Health,04/08/2011,Addition Clearing - OLB,CDD CORPORATE DEVELOPMENT,EMCOR FACILITIES SERVICES LTD,00202264RI,111476.4,
Department of Health,Department of Health,04/08/2011,Outsourcing Contract,"PSF POLICY, STRATEGY & FINANCE",PRICEWATERHOUSECOOPERS LLP,1353640661,"140,000.00",
Department of Health,Department of Health,04-Aug-11,Contr Other External,Informatics,CABLE & WIRELESS UK,13354805,161808,
Department of Health,Department of Health,04/08/2011,Outsourcing Contract,"PSF POLICY, STRATEGY & FINANCE",UKSH SOUTH WEST LTD,UKSHSW/122,"192,172.81",
Department of Health,Department of Health,04/08/2011,Outsourcing Contract,CDD CORPORATE DEVELOPMENT,CSC COMPUTER SCIENCES LTD,5201243020,220000,
Department of Health,Department of Health,04/08/2011,Outsourcing Contract,WORKFORCE,CARDIFF UNIVERSITY,1021533,275400,
Department of Health,Department of Health,04/08/2011,Grants to non profit institutions (CUR),SOCIAL CARE,DEMELZA HOUSE CHILDRENS HOSPICE,ERS-438361-50381,504925,
Department of Health,Department of Health,04/08/2011,Outsourcing Contract,"PSF POLICY, STRATEGY & FINANCE",SPIRE HEALTHCARE LTD,CM090261/JUNE/2011,"674,098.75",
Department of Health,Department of Health,04/08/2011,Outsourcing Contract,"PSF POLICY, STRATEGY & FINANCE",ALLIANCE MEDICAL LTD,PET0101,"980,249.30",
Department of Health,Department of Health,04/08/2011,Outsourcing Contract,"PSF POLICY, STRATEGY & FINANCE",FRESENIUS MEDICAL CARE RENAL SERVICES LTD,1060017756,"1,017,606.76",
Department of Health,Department of Health,04/08/2011,Outsourcing Contract,"PSF POLICY, STRATEGY & FINANCE",INHEALTH MOLECULAR IMAGING LTD,SIM000062,"1,047,233.64",
Department of Health,Department of Health,04/08/2011,Outsourcing Contract,"PSF POLICY, STRATEGY & FINANCE",UKSH SOUTH WEST LTD,UKSHSW/122,"2,639,108.77",
Department of Health,Department of Health,04/08/2011,Programme Revenue Grant in Aid to ENDPBs,HPIH & SD,HEALTH PROTECTION AGENCY (HPA),FUNDING PERIOD AUGUST 2011,13500000,
Department of Health,Department of Health,05/08/2011,Research & development,Research and Development,WELLCOME TRUST TRADING LTD,ERS-438479-50463,25000,
Department of Health,Department of Health,05-Aug-11,External Consultancy Fees,Informatics,ASE CONSULTING LTD,13402534,25650,
Department of Health,Department of Health,05/08/2011,Research & development,Research and Development,MID YORKSHIRE HOSPITALS NHS TRUST,ERS-438442-50444,25650,
Department of Health,Department of Health,05/08/2011,Research & development,Research and Development,SOUTHAMPTON UNIVERSITY OF,ERS-438485-50462,26855,
Department of Health,Department of Health,05-Aug-11,External Consultancy Fees,Informatics,ASE CONSULTING LTD,13402533,27000,
Department of Health,Department of Health,05/08/2011,Research & development,Research and Development,NATIONAL CANCER RESEARCH INSTITUTE (NCRI),ERS-438472-50457,27696.71,
Department of Health,Department of Health,05/08/2011,Research & development,Research and Development,INFRARED INTEGRATED SYSTEMS LTD,ERS-438448-50449,30832.29,
Department of Health,Department of Health,05/08/2011,Research & development,Research and Development,CENTRAL MANCHESTER UNIVERSITY HOSPITALS NHS FOUNDATION TRUST,ERS-438455-50439,34727,
Department of Health,Department of Health,05/08/2011,Service charge,INFORMATICS,BT GROUP PLC,CHAPS5/8/11,35170.69,
Department of Health,Department of Health,05/08/2011,Research & development,Research and Development,UNIVERSITY HOSPITALS BRISTOL NHS FOUNDATION TRUST,ERS-438470-50426,36644.96,
Department of Health,Department of Health,05/08/2011,Research & development,Research and Development,NOTTINGHAM UNIVERSITY HOSPITALS NHS TRUST,ERS-438467-50442,37167.7,
Department of Health,Department of Health,05/08/2011,Research & development,Research and Development,GATESHEAD HEALTH NHS FOUNDATION TRUST,ERS-438465-50434,38363.8,
Department of Health,Department of Health,05/08/2011,Research & development,Research and Development,LANCASHIRE TEACHING HOSPITALS NHS FOUNDATION TRUST,ERS-438451-50445,40035,
Department of Health,Department of Health,05/08/2011,Research & development,Research and Development,PORTSMOUTH HOSPITAL NHS TRUST,ERS-438468-50429,42510.28,
Department of Health,Department of Health,05/08/2011,Research & development,Research and Development,RAND EUROPE CAMBRIDGE LTD,ERS-438474-50446,49834.94,
Department of Health,Department of Health,05/08/2011,Grants to non profit institutions (CUR),SOCIAL CARE,LEONARD CHESHIRE DISABILITY,ERS-438413-50401,60960,
Department of Health,Department of Health,05/08/2011,Secondees in invoiced costs,NHS MEDICAL DIRECTOR,LEEDS PCT,19877965,64397.95,
Department of Health,Department of Health,05/08/2011,Research & development,Research and Development,SOUTH TEES HOSPITALS NHS FOUNDATION TRUST,ERS-438469-50436,65944.98,
Department of Health,Department of Health,05/08/2011,Programme Revenue Grant in Aid to ENDPBs,HPIH & SD,DEFENCE BILLS AGENCY (DBA),7215141,112150.05,
Department of Health,Department of Health,05/08/2011,Research & development,Research and Development,OXFORD UNIVERSITY,ERS-438481-50460,118426,
Department of Health,Department of Health,05/08/2011,Research & development,Research and Development,UNIVERSITY COLLEGE LONDON (UCL),ERS-438466-50453,127708.7,
Department of Health,Department of Health,05/08/2011,Research & development,Research and Development,OXFORD HEALTH NHS FOUNDATION TRUST,ERS-438483-50431,212756,
Department of Health,Department of Health,05/08/2011,Research & development,Research and Development,MEDICAL RESEARCH COUNCIL MRC,ERS-438471-50455,213749,
Department of Health,Department of Health,05/08/2011,Service charge,INFORMATICS,CSC COMPUTER SCIENCES LTD,5201244996,502692.26,
Department of Health,Department of Health,05/08/2011,Revenue Grants to Other Bodies,HPIH & SD,DEFENCE BILLS AGENCY (DBA),7215141,572657.37,
Department of Health,Department of Health,05/08/2011,Research & development,Research and Development,MEDICAL RESEARCH COUNCIL MRC,ERS-438486-50456,700000,
Department of Health,Department of Health,05/08/2011,Admin Capital Grant-in-Aid to ENDPBs,"PSF POLICY, STRATEGY & FINANCE",CARE QUALITY COMMISSION (CQC),40756,"1,000,000.00",
Department of Health,Department of Health,05/08/2011,Service charge,INFORMATICS,CSC COMPUTER SCIENCES LTD,5201244994,1077486.22,
Department of Health,Department of Health,05/08/2011,Service charge,INFORMATICS,CSC COMPUTER SCIENCES LTD,5201244993,1113633.89,
Department of Health,Department of Health,05/08/2011,Admin Revenue Grant-in-Aid ENDPBs,"PSF POLICY, STRATEGY & FINANCE",CARE QUALITY COMMISSION (CQC),40756,"4,100,000.00",
Department of Health,Department of Health,05/08/2011,Service charge,INFORMATICS,BT GROUP PLC,CHAPS05/08/11,6887885.69,
Department of Health,Department of Health,08/08/2011,Contactor/ Staff Subsitution,CDD CORPORATE DEVELOPMENT,GRANT THORNTON LTD,6529405,1008,
Department of Health,Department of Health,08/08/2011,Contactor/ Staff Subsitution,CDD CORPORATE DEVELOPMENT,GRANT THORNTON LTD,6529405,1311,
Department of Health,Department of Health,08/08/2011,Contactor/ Staff Subsitution,CDD CORPORATE DEVELOPMENT,GRANT THORNTON LTD,6529405,1383,
Department of Health,Department of Health,08/08/2011,Contactor/ Staff Subsitution,CDD CORPORATE DEVELOPMENT,GRANT THORNTON LTD,6529405,1425,
Department of Health,Department of Health,08/08/2011,Contactor/ Staff Subsitution,CDD CORPORATE DEVELOPMENT,GRANT THORNTON LTD,6529405,1935.52,
Department of Health,Department of Health,08/08/2011,Contactor/ Staff Subsitution,CDD CORPORATE DEVELOPMENT,GRANT THORNTON LTD,6529405,2181,
Department of Health,Department of Health,08/08/2011,Contactor/ Staff Subsitution,CDD CORPORATE DEVELOPMENT,GRANT THORNTON LTD,6529405,2203.62,
Department of Health,Department of Health,08/08/2011,Contactor/ Staff Subsitution,CDD CORPORATE DEVELOPMENT,GRANT THORNTON LTD,6529405,2757,
Department of Health,Department of Health,08/08/2011,Contactor/ Staff Subsitution,CDD CORPORATE DEVELOPMENT,GRANT THORNTON LTD,6529405,2793,
Department of Health,Department of Health,08/08/2011,Contactor/ Staff Subsitution,CDD CORPORATE DEVELOPMENT,GRANT THORNTON LTD,6529405,3044.48,
Department of Health,Department of Health,08/08/2011,Contactor/ Staff Subsitution,CDD CORPORATE DEVELOPMENT,GRANT THORNTON LTD,6529405,3306,
Department of Health,Department of Health,08/08/2011,Contactor/ Staff Subsitution,CDD CORPORATE DEVELOPMENT,GRANT THORNTON LTD,6529405,4446,
Department of Health,Department of Health,08/08/2011,Contactor/ Staff Subsitution,CDD CORPORATE DEVELOPMENT,GRANT THORNTON LTD,6529405,5057.5,
Department of Health,Department of Health,08/08/2011,Contactor/ Staff Subsitution,CDD CORPORATE DEVELOPMENT,GRANT THORNTON LTD,6529405,6093.69,
Department of Health,Department of Health,08/08/2011,Contactor/ Staff Subsitution,CDD CORPORATE DEVELOPMENT,GRANT THORNTON LTD,6529405,6120,
Department of Health,Department of Health,08/08/2011,Outsourcing Contract,COMMISSIONING,RUSSELL REYNOLDS ASSOCIATES LTD,39069,25500,
Department of Health,Department of Health,08/08/2011,Contactor/ Staff Subsitution,NHS Improvement and Efficiency,BADENOCH AND CLARK LTD,4111732,29355.17,
Department of Health,Department of Health,08/08/2011,Outsourcing Contract,SOCIAL CARE,CENTREVENTS LTD,CE00681,30178.8,
Department of Health,Department of Health,08/08/2011,Secondees in invoiced costs,HPIH & SD,NORTH WEST LONDON HOSPITALS NHS TRUST,I0128704,31484.82,
Department of Health,Department of Health,08-Aug-11,Mobile Phones,Informatics,VODAFONE CORPORATE LTD,13402520,48579.54,
Department of Health,Department of Health,08/08/2011,Secondees in invoiced costs,HPIH & SD,KNOWSLEY METROPOLITAN BOROUGH COUNCIL,SD2160418,65989.2,
Department of Health,Department of Health,08-Aug-11,Legal / Prof Fees,Informatics,DLA PIPER UK LLP,13417697,171352,
Department of Health,Department of Health,08/08/2011,Service charge,INFORMATICS,CSC COMPUTER SCIENCES LTD,5201244984,195566.4,
Department of Health,Department of Health,08/08/2011,Service charge,INFORMATICS,CSC COMPUTER SCIENCES LTD,5201244995,269617.38,
Department of Health,Department of Health,08/08/2011,Service charge,INFORMATICS,CSC COMPUTER SCIENCES LTD,5201244985,790433.71,
Department of Health,Department of Health,08/08/2011,Service charge,INFORMATICS,CSC COMPUTER SCIENCES LTD,5201244983,871988.57,
Department of Health,Department of Health,08/08/2011,Additions FT Financing Facility Loans,NHS FC,UNIVERSITY HOSPITAL OF SOUTH MANCHESTER NHS FOUNDATION TRUST,HAFS-11235,"1,120,000",
Department of Health,Department of Health,08/08/2011,Service charge,INFORMATICS,CSC COMPUTER SCIENCES LTD,5201245111,1418725.85,
Department of Health,Department of Health,08/08/2011,Additions FT Financing Facility Loans,NHS FC,BOLTON NHS FOUNDATION TRUST,HAFS-11234,"1,481,000",
Department of Health,Department of Health,08/08/2011,Outsourcing Contract,WORKFORCE,UNIVERSITY HOSPITALS BRISTOL NHS FOUNDATION TRUST,S0000113,4500000,
Department of Health,Department of Health,09/08/2011,Research & development,Research and Development,VERAZ LTD,SBRI-2008,23873.26,
Department of Health,Department of Health,09/08/2011,Printing,COMMUNICATIONS,PROMOTIONAL LOGISTICS LTD,IN310973,29090.01,
Department of Health,Department of Health,09/08/2011,Research & development,Research and Development,VERAZ LTD,SBRI-2007,31618.92,
Department of Health,Department of Health,09/08/2011,Printing,CDD CORPORATE DEVELOPMENT,XEROX BUSINESS SERVICES,900080233,37415.41,
Department of Health,Department of Health,09/08/2011,Service charge,INFORMATICS,BT GROUP PLC,274392,54972.16,
Department of Health,Department of Health,09/08/2011,Outsourcing Contract,COMMUNICATIONS,CENTRAL OFFICE OF INFORMATION (COI),735860,76000,
Department of Health,Department of Health,09/08/2011,Printing,COMMUNICATIONS,PROMOTIONAL LOGISTICS LTD,IN310972,100449.5,
Department of Health,Department of Health,09/08/2011,Publicity & advertising,COMMUNICATIONS,CENTRAL OFFICE OF INFORMATION (COI),735863,179997,
Department of Health,Department of Health,09/08/2011,Addition Clearing - SW LIC,INFORMATICS,BT GROUP PLC,CHAPS9/8/11,307919.15,
Department of Health,Department of Health,09/08/2011,Service charge,INFORMATICS,BT GROUP PLC,CHAPS9/8/11,387338.55,
Department of Health,Department of Health,09/08/2011,Service charge,INFORMATICS,BT GROUP PLC,274392,9458719.59,
Department of Health,Department of Health,10/08/2011,Grants to non profit institutions (CUR),SOCIAL CARE,THE BRITISH ALLERGY FOUNDATION,ERS-438678-50481,25000,
Department of Health,Department of Health,10/08/2011,Secondees in invoiced costs,HPIH & SD,EAST OF ENGLAND AMBULANCE SERVICE NHS TRUST,720699,25691.88,
Department of Health,Department of Health,10/08/2011,Contactor/ Staff Subsitution,NHS Improvement and Efficiency,BADENOCH AND CLARK LTD,4096918,26514,
Department of Health,Department of Health,10-Aug-11,Staff Consultancy & Suppt,Informatics,CAPGEMINI UK PLC,13410614,26984.29,
Department of Health,Department of Health,10/08/2011,Outsourcing Contract,NHS MEDICAL DIRECTOR,OFFICE FOR NATIONAL STATISTICS (ONS),1021782,27703.1,
Department of Health,Department of Health,10/08/2011,Contactor/ Staff Subsitution,CDD CORPORATE DEVELOPMENT,FOXLANE ASSOCIATES LTD,01.11-12,51797.52,
Department of Health,Department of Health,10-Aug-11,Hardware & Crockery,Informatics,PROBRAND LTD,13429471,53307.91,
Department of Health,Department of Health,10-Aug-11,Staff Consultancy & Suppt,Informatics,CAPGEMINI UK PLC,13410614,58267,
Department of Health,Department of Health,10/08/2011,Secondees in invoiced costs,INFORMATICS,OXFORD RADCLIFFE HOSPITAL NHS TRUST,8130296,100913.09,
Department of Health,Department of Health,10/08/2011,Building repairs & maintenance,NHS FINANCE PERFORMANCE & OPERATIONS,DONINGTON INVESTMENTS LTD,5442,116087.6,
Department of Health,Department of Health,10-Aug-11,Legal / Prof Fees,Informatics,MILBANK TWEED HADLEY & MCCLOY LLP,13409762,116879.25,
Department of Health,Department of Health,10-Aug-11,Computer Maintenance,Informatics,IDENTITY & PASSPORT SERVICE,13402590,138750,
Department of Health,Department of Health,10/08/2011,Outsourcing Contract,NHS MEDICAL DIRECTOR,OFFICE FOR NATIONAL STATISTICS (ONS),1021782,185117.05,
Department of Health,Department of Health,10-Aug-11,External Consultancy Fees,Informatics,QI CONSULTING,13391108,260238.5,
Department of Health,Department of Health,10/08/2011,Arm Length Bodies-Revenue Subsidy,HPIH & SD,MEDICINES AND HEALTHCARE PRODUCTS REGULATORY AGENCY (MHRA),1358812,1000000,
Department of Health,Departmeent of Health,10/08/2011,Provisions cash payment,WORKFORCE,NHS INJURY BENEFITS SCHEME,ERS-438708-50501,4189803.73,
Department of Health,Department of Health,11/08/2011,Contactor/ Staff Subsitution,CDD CORPORATE DEVELOPMENT,GRANT THORNTON LTD,6548263,171,
Department of Health,Department of Health,11/08/2011,Contactor/ Staff Subsitution,CDD CORPORATE DEVELOPMENT,GRANT THORNTON LTD,6548263,252,
Department of Health,Department of Health,11/08/2011,Contactor/ Staff Subsitution,CDD CORPORATE DEVELOPMENT,GRANT THORNTON LTD,6548263,420,
Department of Health,Department of Health,11/08/2011,Contactor/ Staff Subsitution,CDD CORPORATE DEVELOPMENT,GRANT THORNTON LTD,6548263,450,
Department of Health,Department of Health,11/08/2011,Contactor/ Staff Subsitution,CDD CORPORATE DEVELOPMENT,GRANT THORNTON LTD,6548263,456,
Department of Health,Department of Health,11/08/2011,Contactor/ Staff Subsitution,CDD CORPORATE DEVELOPMENT,GRANT THORNTON LTD,6548263,570,
Department of Health,Department of Health,11/08/2011,Contactor/ Staff Subsitution,CDD CORPORATE DEVELOPMENT,GRANT THORNTON LTD,6548263,762,
Department of Health,Department of Health,11/08/2011,Contactor/ Staff Subsitution,CDD CORPORATE DEVELOPMENT,GRANT THORNTON LTD,6548263,778.51,
Department of Health,Department of Health,11/08/2011,Contactor/ Staff Subsitution,CDD CORPORATE DEVELOPMENT,GRANT THORNTON LTD,6548263,1122,
Department of Health,Department of Health,11/08/2011,Contactor/ Staff Subsitution,CDD CORPORATE DEVELOPMENT,GRANT THORNTON LTD,6548263,1479,
Department of Health,Department of Health,11/08/2011,Contactor/ Staff Subsitution,CDD CORPORATE DEVELOPMENT,GRANT THORNTON LTD,6548263,1743,
Department of Health,Department of Health,11/08/2011,Contactor/ Staff Subsitution,CDD CORPORATE DEVELOPMENT,GRANT THORNTON LTD,6548263,1793.65,
Department of Health,Department of Health,11/08/2011,Contactor/ Staff Subsitution,CDD CORPORATE DEVELOPMENT,GRANT THORNTON LTD,6548263,2043,
Department of Health,Department of Health,11/08/2011,Contactor/ Staff Subsitution,CDD CORPORATE DEVELOPMENT,GRANT THORNTON LTD,6548263,2531.86,
Department of Health,Department of Health,11/08/2011,Contactor/ Staff Subsitution,CDD CORPORATE DEVELOPMENT,GRANT THORNTON LTD,6548263,3024,
Department of Health,Department of Health,11/08/2011,Contactor/ Staff Subsitution,CDD CORPORATE DEVELOPMENT,GRANT THORNTON LTD,6548263,3075.72,
Department of Health,Department of Health,11-Aug-11,External Consultancy Fees,Informatics,CAPGEMINI UK PLC,13424062,3102.98,
Department of Health,Department of Health,11/08/2011,Contactor/ Staff Subsitution,CDD CORPORATE DEVELOPMENT,GRANT THORNTON LTD,6548263,3600,
Department of Health,Department of Health,11/08/2011,Contactor/ Staff Subsitution,CDD CORPORATE DEVELOPMENT,GRANT THORNTON LTD,6548263,3765,
Department of Health,Department of Health,11/08/2011,Contactor/ Staff Subsitution,CDD CORPORATE DEVELOPMENT,GRANT THORNTON LTD,6548263,4553.36,
Department of Health,Department of Health,11/08/2011,Contactor/ Staff Subsitution,CDD CORPORATE DEVELOPMENT,GRANT THORNTON LTD,6548263,13124.28,
Department of Health,Department of Health,11-Aug-11,Staff Consultancy & Suppt,Informatics,CAPGEMINI UK PLC,13424062,21400,
Department of Health,Department of Health,11/08/2011,Utilities,CDD CORPORATE DEVELOPMENT,SCOTTISH AND SOUTHERN ENERGY PLC,191304511/0052,39262.78,
Department of Health,Department of Health,11/08/2011,Travel & subsistence staff,CDD CORPORATE DEVELOPMENT,EXPOTEL HOTEL RESERVATIONS LTD,735915,39688.58,
Department of Health,Department of Health,11/08/2011,Outsourcing Contract,HPIH & SD,EDINBURGH UNIVERSITY OF,Z0020627,43299,
Department of Health,Department of Health,11/08/2011,Outsourcing Contract,WORKFORCE,PUBLIC CONCERN AT WORK,27037,48017.24,
Department of Health,Department of Health,11/08/2011,Printing,COMMUNICATIONS,CENTRAL OFFICE OF INFORMATION (COI),735899,50022,
Department of Health,Department of Health,11/08/2011,Professional fees,COMMISSIONING,ERNST AND YOUNG LLP,GB10300002972,51083,
Department of Health,Department of Health,11/08/2011,Travel & subsistence staff,CDD CORPORATE DEVELOPMENT,EXPOTEL HOTEL RESERVATIONS LTD,735689,56806.35,
Department of Health,Department of Health,11/08/2011,Service charge,INFORMATICS,ATOS ORIGIN IT SERVICES UK LTD,5584086491,57789.29,
Department of Health,Department of Health,11/08/2011,Publicity & advertising,COMMUNICATIONS,CENTRAL OFFICE OF INFORMATION (COI),735892,176208,
Department of Health,Department of Health,11/08/2011,Outsourcing Contract,"PSF POLICY, STRATEGY & FINANCE",INHEALTH LTD,95,"312,500.00",
Department of Health,Department of Health,11/08/2011,Outsourcing Contract,"PSF POLICY, STRATEGY & FINANCE",PARTNERSHIP HEALTH GROUP LTD,25788429,"666,495.50",
Department of Health,Department of Health,11/08/2011,Outsourcing Contract,"PSF POLICY, STRATEGY & FINANCE",RAMSAY HEALTH CARE UK OPERATIONS LTD T/AS EUXTON HALL HOSPITAL,56,"1,016,859.06",
Department of Health,Department of Health,11/08/2011,Outsourcing Contract,"PSF POLICY, STRATEGY & FINANCE",CARE UK CLINICAL SERVICES LTD,25788477,"1,081,354.51",
Department of Health,Department of Health,11/08/2011,Outsourcing Contract,"PSF POLICY, STRATEGY & FINANCE",PARTNERSHIP HEALTH GROUP LTD,25788429,"1,310,717.70",
Department of Health,Department of Health,11/08/2011,Outsourcing Contract,"PSF POLICY, STRATEGY & FINANCE",CARE UK CLINICAL SERVICES LTD,25788477,"1,367,509.10",
Department of Health,Department of Health,11/08/2011,Outsourcing Contract,"PSF POLICY, STRATEGY & FINANCE",RAMSAY HEALTH CARE UK OPERATIONS LTD T/AS EUXTON HALL HOSPITAL,56,"1,724,233.26",
Department of Health,Department of Health,11/08/2011,Outsourcing Contract,"PSF POLICY, STRATEGY & FINANCE",INHEALTH LTD,96,"2,155,766.83",
Department of Health,Department of Health,12/08/2011,Research & development,Research and Development,PREPRESS PROJECTS LTD,ERS-438868-50576,25000,
Department of Health,Department of Health,12/08/2011,Service charge,INFORMATICS,CSC COMPUTER SCIENCES LTD,5201239919,27370.86,
Department of Health,Department of Health,12/08/2011,Service charge,INFORMATICS,CSC COMPUTER SCIENCES LTD,5201243902,27370.86,
Department of Health,Department of Health,12-Aug-11,External Consultancy Fees,Informatics,KPMG LLP,13386405,27913.67,
Department of Health,Department of Health,12/08/2011,Research & development,Research and Development,INSTITUTE OF EDUCATION (IOE),ERS-438850-50568,29729.95,
Department of Health,Department of Health,12/08/2011,Outsourcing Contract,WORKFORCE,MOUCHEL MANAGEMENT CONSULTING LTD,90077747,32780.4,
Department of Health,Department of Health,12/08/2011,Research & development,Research and Development,MANCHESTER UNIVERSITY OF,ERS-438861-50571,32856,
Department of Health,Department of Health,12-Aug-11,Legal / Prof Fees,Informatics,DLA PIPER UK LLP,13444610,33360.5,
Department of Health,Department of Health,12/08/2011,Travel -Trains,CDD CORPORATE DEVELOPMENT,FCM TRAVEL SOLUTIONS,1049604768,39939.48,
Department of Health,Department of Health,12/08/2011,Outsourcing Contract,CDD CORPORATE DEVELOPMENT,STERIA LTD,100022476,41457.52,
Department of Health,Department of Health,12/08/2011,Outsourcing Contract,SOCIAL CARE,BIG WHITE WALL LTD,934,43200,
Department of Health,Department of Health,12/08/2011,Research & development,Research and Development,CHESHIRE AND WIRRAL PARTNERSHIP NHS FOUNDATION TRUST,ERS-438854-50564,43796,
Department of Health,Department of Health,12/08/2011,Research & development,Research and Development,BRISTOL UNIVERSITY OF,ERS-438866-50567,48890,
Department of Health,Department of Health,12/08/2011,Research & development,Research and Development,UNIVERSITY COLLEGE LONDON (UCL),ERS-438853-50569,52229,
Department of Health,Department of Health,12/08/2011,Research & development,Research and Development,UNIVERSITY COLLEGE LONDON (UCL),ERS-438867-50570,52229,
Department of Health,Department of Health,12/08/2011,Outsourcing Contract,WORKFORCE,MOUCHEL MANAGEMENT CONSULTING LTD,90077813,55916.4,
Department of Health,Department of Health,12/08/2011,Research & development,Research and Development,BARTS AND THE LONDON NHS TRUST,ERS-438851-50562,61158,
Department of Health,Department of Health,12/08/2011,Outsourcing Contract,CDD CORPORATE DEVELOPMENT,STERIA LTD,100022467,62989.69,
Department of Health,Department of Health,12/08/2011,Admin Revenue Grant-in-Aid ENDPBs,HPIH & SD,HEALTH PROTECTION AGENCY (HPA),5328437,75750,
Department of Health,Department of Health,12/08/2011,Outsourcing Contract,HPIH & SD,BROOK ADVISORY CENTRES,2185,95000,
Department of Health,Department of Health,12/08/2011,Storage costs,HPIH & SD,HEALTH PROTECTION AGENCY (HPA),5318256,96169.25,
Department of Health,Department of Health,12/08/2011,Admin Revenue Grant-in-Aid ENDPBs,WORKFORCE,COUNCIL FOR HEALTHCARE REGULATORY EXCELLENCE (CHRE),DH005,100000,
Department of Health,Department of Health,12/08/2011,Building repairs & maintenance,CDD CORPORATE DEVELOPMENT,EMCOR FACILITIES SERVICES LTD,00203600ARI,110636.12,
Department of Health,Department of Health,12/08/2011,Outsourcing Contract,WORKFORCE,MOUCHEL MANAGEMENT CONSULTING LTD,90077759,122214,
Department of Health,Department of Health,12/08/2011,Grants to non profit institutions (CUR),"PSF POLICY, STRATEGY & FINANCE",IN CONTROL PARTNERSHIPS,ERS-438812-50541,"148,960.00",
Department of Health,Department of Health,15/08/2011,Professional fees,SOCIAL CARE,TREASURY SOLICITORS DEPARTMENT (TSOL),110514,3394.6,
Department of Health,Department of Health,15/08/2011,Professional fees,SOCIAL CARE,TREASURY SOLICITORS DEPARTMENT (TSOL),110514,22554.56,
Department of Health,Department of Health,15/08/2011,Outsourcing Contract,CDD CORPORATE DEVELOPMENT,CSC COMPUTER SCIENCES LTD,5201248498,27924.43,
Department of Health,Department of Health,15-Aug-11,Computer Maintenance,Informatics,COMPUTACENTER UK LTD,13444585,28739.46,
Department of Health,Department of Health,15/08/2011,Secondees in invoiced costs,"PSF POLICY, STRATEGY & FINANCE",AUDIT COMMISSION,4037265,"30,924.14",
Department of Health,Department of Health,15/08/2011,Outsourcing Contract,CDD CORPORATE DEVELOPMENT,CSC COMPUTER SCIENCES LTD,5201248491,38065.85,
Department of Health,Department of Health,15/08/2011,Research & development,Research and Development,COVENTRY & WARWICKSHIRE PARTNERSHIP NHS TRUST,ERS-438913-50582,40728,
Department of Health,Department of Health,15/08/2011,Professional fees,COMMISSIONING,ERNST AND YOUNG LLP,GB1030003437,42166.84,
Department of Health,Department of Health,15/08/2011,Other programme expenditure,HPIH & SD,GREAT ORMOND STREET HOSPITAL FOR CHILDREN NHS TRUST,X0074080,44613.12,
Department of Health,Department of Health,15/08/2011,Professional fees,COMMISSIONING,DELOITTE LLP,1110701629,49648,
Department of Health,Department of Health,15/08/2011,Publicity & advertising,COMMUNICATIONS,CENTRAL OFFICE OF INFORMATION (COI),735952,68000,
Department of Health,Department of Health,15/08/2011,Contactor/ Staff Subsitution,NHS Improvement and Efficiency,PRICEWATERHOUSECOOPERS LLP,1353640923,83608.8,
Department of Health,Department of Health,15/08/2011,Stock Essential Medicines Additions,"PSF POLICY, STRATEGY & FINANCE",RANBAXY UK LTD,37400079,"187,418.88",
Department of Health,Department of Health,16-Aug-11,Travel & Subsistence,Informatics,REDFERN TRAVEL LTD,13457964,-137.04,
Department of Health,Department of Health,16-Aug-11,Travel & Subsistence,Informatics,REDFERN TRAVEL LTD,13457964,-0.33,
Department of Health,Department of Health,16-Aug-11,Travel & Subsistence,Informatics,REDFERN TRAVEL LTD,13457964,48.94,
Department of Health,Department of Health,16-Aug-11,Travel & Subsistence,Informatics,REDFERN TRAVEL LTD,13457964,50.23,
Department of Health,Department of Health,16-Aug-11,Travel & Subsistence,Informatics,HRG UK,13457965,81.4,
Department of Health,Department of Health,16-Aug-11,Travel & Subsistence,Informatics,HRG UK,13457965,81.4,
Department of Health,Department of Health,16-Aug-11,Travel & Subsistence,Informatics,HRG UK,13457965,83.4,
Department of Health,Department of Health,16-Aug-11,Travel & Subsistence,Informatics,HRG UK,13457965,87.4,
Department of Health,Department of Health,16-Aug-11,Travel & Subsistence,Informatics,HRG UK,13457965,87.4,
Department of Health,Department of Health,16-Aug-11,Travel & Subsistence,Informatics,HRG UK,13457965,88.9,
Department of Health,Department of Health,16-Aug-11,Travel & Subsistence,Informatics,HRG UK,13457965,99.4,
Department of Health,Department of Health,16-Aug-11,Travel & Subsistence,Informatics,REDFERN TRAVEL LTD,13457964,103.77,
Department of Health,Department of Health,16-Aug-11,Travel & Subsistence,Informatics,REDFERN TRAVEL LTD,13457964,112.48,
Department of Health,Department of Health,16-Aug-11,Travel & Subsistence,Informatics,REDFERN TRAVEL LTD,13457964,119.01,
Department of Health,Department of Health,16-Aug-11,Travel & Subsistence,Informatics,REDFERN TRAVEL LTD,13457964,120.72,
Department of Health,Department of Health,16-Aug-11,Travel & Subsistence,Informatics,HRG UK,13457965,123.4,
Department of Health,Department of Health,16-Aug-11,Travel & Subsistence,Informatics,HRG UK,13457965,123.4,
Department of Health,Department of Health,16-Aug-11,Travel & Subsistence,Informatics,REDFERN TRAVEL LTD,13457964,140.05,
Department of Health,Department of Health,16-Aug-11,Travel & Subsistence,Informatics,HRG UK,13457965,154.4,
Department of Health,Department of Health,16-Aug-11,Travel & Subsistence,Informatics,HRG UK,13457965,155.4,
Department of Health,Department of Health,16-Aug-11,Travel & Subsistence,Informatics,HRG UK,13457965,158.4,
Department of Health,Department of Health,16-Aug-11,Travel & Subsistence,Informatics,HRG UK,13457965,186.79,
Department of Health,Department of Health,16-Aug-11,Travel & Subsistence,Informatics,REDFERN TRAVEL LTD,13457964,190.6,
Department of Health,Department of Health,16-Aug-11,Travel & Subsistence,Informatics,REDFERN TRAVEL LTD,13457964,201.84,
Department of Health,Department of Health,16-Aug-11,Travel & Subsistence,Informatics,REDFERN TRAVEL LTD,13457964,205.86,
Department of Health,Department of Health,16-Aug-11,Travel & Subsistence,Informatics,REDFERN TRAVEL LTD,13457964,215.06,
Department of Health,Department of Health,16-Aug-11,Travel & Subsistence,Informatics,REDFERN TRAVEL LTD,13457964,226.49,
Department of Health,Department of Health,16-Aug-11,Travel & Subsistence,Informatics,HRG UK,13457965,238.4,
Department of Health,Department of Health,16-Aug-11,Travel & Subsistence,Informatics,HRG UK,13457965,242.4,
Department of Health,Department of Health,16-Aug-11,Travel & Subsistence,Informatics,HRG UK,13457965,243.3,
Department of Health,Department of Health,16-Aug-11,Travel & Subsistence,Informatics,REDFERN TRAVEL LTD,13457964,260.52,
Department of Health,Department of Health,16-Aug-11,Travel & Subsistence,Informatics,REDFERN TRAVEL LTD,13457964,268.98,
Department of Health,Department of Health,16-Aug-11,Travel & Subsistence,Informatics,HRG UK,13457965,271.19,
Department of Health,Department of Health,16-Aug-11,Travel & Subsistence,Informatics,REDFERN TRAVEL LTD,13457964,275.95,
Department of Health,Department of Health,16-Aug-11,Travel & Subsistence,Informatics,REDFERN TRAVEL LTD,13457964,282.23,
Department of Health,Department of Health,16-Aug-11,Travel & Subsistence,Informatics,HRG UK,13457965,286.8,
Department of Health,Department of Health,16-Aug-11,Travel & Subsistence,Informatics,HRG UK,13457965,288.8,
Department of Health,Department of Health,16-Aug-11,Travel & Subsistence,Informatics,REDFERN TRAVEL LTD,13457964,295.88,
Department of Health,Department of Health,16-Aug-11,Travel & Subsistence,Informatics,HRG UK,13457965,305.2,
Department of Health,Department of Health,16-Aug-11,Travel & Subsistence,Informatics,REDFERN TRAVEL LTD,13457964,330.52,
Department of Health,Department of Health,16-Aug-11,Travel & Subsistence,Informatics,HRG UK,13457965,331.2,
Department of Health,Department of Health,16-Aug-11,Travel & Subsistence,Informatics,HRG UK,13457965,338.59,
Department of Health,Department of Health,16-Aug-11,Travel & Subsistence,Informatics,HRG UK,13457965,338.8,
Department of Health,Department of Health,16-Aug-11,Travel & Subsistence,Informatics,REDFERN TRAVEL LTD,13457964,343.71,
Department of Health,Department of Health,16-Aug-11,Travel & Subsistence,Informatics,REDFERN TRAVEL LTD,13457964,381.7,
Department of Health,Department of Health,16-Aug-11,Travel & Subsistence,Informatics,HRG UK,13457965,385.6,
Department of Health,Department of Health,16-Aug-11,Travel & Subsistence,Informatics,HRG UK,13457965,398.21,
Department of Health,Department of Health,16-Aug-11,Travel & Subsistence,Informatics,HRG UK,13457965,398.59,
Department of Health,Department of Health,16-Aug-11,Travel & Subsistence,Informatics,HRG UK,13457965,403.2,
Department of Health,Department of Health,16-Aug-11,Travel & Subsistence,Informatics,REDFERN TRAVEL LTD,13457964,437.03,
Department of Health,Department of Health,16-Aug-11,Travel & Subsistence,Informatics,REDFERN TRAVEL LTD,13457964,438.55,
Department of Health,Department of Health,16-Aug-11,Travel & Subsistence,Informatics,HRG UK,13457965,460.6,
Department of Health,Department of Health,16-Aug-11,Travel & Subsistence,Informatics,REDFERN TRAVEL LTD,13457964,463.35,
Department of Health,Department of Health,16-Aug-11,Travel & Subsistence,Informatics,REDFERN TRAVEL LTD,13457964,490.5,
Department of Health,Department of Health,16-Aug-11,Travel & Subsistence,Informatics,REDFERN TRAVEL LTD,13457964,505.76,
Department of Health,Department of Health,16-Aug-11,Travel & Subsistence,Informatics,REDFERN TRAVEL LTD,13457964,562,
Department of Health,Department of Health,16-Aug-11,Travel & Subsistence,Informatics,HRG UK,13457965,590.02,
Department of Health,Department of Health,16-Aug-11,Travel & Subsistence,Informatics,HRG UK,13457965,590.59,
Department of Health,Department of Health,16-Aug-11,Travel & Subsistence,Informatics,REDFERN TRAVEL LTD,13457964,591.35,
Department of Health,Department of Health,16-Aug-11,Travel & Subsistence,Informatics,HRG UK,13457965,594,
Department of Health,Department of Health,16-Aug-11,Travel & Subsistence,Informatics,REDFERN TRAVEL LTD,13457964,614.61,
Department of Health,Department of Health,16-Aug-11,Travel & Subsistence,Informatics,REDFERN TRAVEL LTD,13457964,633.63,
Department of Health,Department of Health,16-Aug-11,Travel & Subsistence,Informatics,HRG UK,13457965,643.79,
Department of Health,Department of Health,16-Aug-11,Travel & Subsistence,Informatics,HRG UK,13457965,650,
Department of Health,Department of Health,16-Aug-11,Travel & Subsistence,Informatics,REDFERN TRAVEL LTD,13457964,654.34,
Department of Health,Department of Health,16-Aug-11,Travel & Subsistence,Informatics,REDFERN TRAVEL LTD,13457964,655.33,
Department of Health,Department of Health,16-Aug-11,Travel & Subsistence,Informatics,REDFERN TRAVEL LTD,13457964,678.66,
Department of Health,Department of Health,16-Aug-11,Travel & Subsistence,Informatics,REDFERN TRAVEL LTD,13457964,685.08,
Department of Health,Department of Health,16-Aug-11,Travel & Subsistence,Informatics,REDFERN TRAVEL LTD,13457964,775.64,
Department of Health,Department of Health,16-Aug-11,Travel & Subsistence,Informatics,REDFERN TRAVEL LTD,13457964,791.21,
Department of Health,Department of Health,16-Aug-11,Travel & Subsistence,Informatics,REDFERN TRAVEL LTD,13457964,795.04,
Department of Health,Department of Health,16-Aug-11,Travel & Subsistence,Informatics,HRG UK,13457965,816.19,
Department of Health,Department of Health,16-Aug-11,Travel & Subsistence,Informatics,HRG UK,13457965,831.4,
Department of Health,Department of Health,16-Aug-11,Travel & Subsistence,Informatics,HRG UK,13457965,845.78,
Department of Health,Department of Health,16-Aug-11,Travel & Subsistence,Informatics,REDFERN TRAVEL LTD,13457964,881.26,
Department of Health,Department of Health,16-Aug-11,Travel & Subsistence,Informatics,HRG UK,13457965,891.6,
Department of Health,Department of Health,16-Aug-11,Travel & Subsistence,Informatics,HRG UK,13457965,896.77,
Department of Health,Department of Health,16-Aug-11,Travel & Subsistence,Informatics,HRG UK,13457965,926.2,
Department of Health,Department of Health,16-Aug-11,Travel & Subsistence,Informatics,HRG UK,13457965,949.79,
Department of Health,Department of Health,16-Aug-11,Travel & Subsistence,Informatics,REDFERN TRAVEL LTD,13457964,963.32,
Department of Health,Department of Health,16-Aug-11,Travel & Subsistence,Informatics,REDFERN TRAVEL LTD,13457964,970.89,
Department of Health,Department of Health,16-Aug-11,Travel & Subsistence,Informatics,REDFERN TRAVEL LTD,13457964,1009.55,
Department of Health,Department of Health,16-Aug-11,Travel & Subsistence,Informatics,REDFERN TRAVEL LTD,13457964,1020.62,
Department of Health,Department of Health,16-Aug-11,Travel & Subsistence,Informatics,HRG UK,13457965,1023.79,
Department of Health,Department of Health,16-Aug-11,Travel & Subsistence,Informatics,HRG UK,13457965,1029.59,
Department of Health,Department of Health,16-Aug-11,Travel & Subsistence,Informatics,REDFERN TRAVEL LTD,13457964,1041.44,
Department of Health,Department of Health,16-Aug-11,Travel & Subsistence,Informatics,REDFERN TRAVEL LTD,13457964,1129,
Department of Health,Department of Health,16-Aug-11,Travel & Subsistence,Informatics,HRG UK,13457965,1191.38,
Department of Health,Department of Health,16-Aug-11,Travel & Subsistence,Informatics,REDFERN TRAVEL LTD,13457964,1241.53,
Department of Health,Department of Health,16-Aug-11,Travel & Subsistence,Informatics,REDFERN TRAVEL LTD,13457964,1301.84,
Department of Health,Department of Health,16-Aug-11,Travel & Subsistence,Informatics,HRG UK,13457965,1326.89,
Department of Health,Department of Health,16-Aug-11,Travel & Subsistence,Informatics,REDFERN TRAVEL LTD,13457964,1418.53,
Department of Health,Department of Health,16-Aug-11,Travel & Subsistence,Informatics,REDFERN TRAVEL LTD,13457964,1437.69,
Department of Health,Department of Health,16-Aug-11,Travel & Subsistence,Informatics,HRG UK,13457965,1529.17,
Department of Health,Department of Health,16-Aug-11,Travel & Subsistence,Informatics,REDFERN TRAVEL LTD,13457964,1612.03,
Department of Health,Department of Health,16-Aug-11,Travel & Subsistence,Informatics,REDFERN TRAVEL LTD,13457964,1628.49,
Department of Health,Department of Health,16-Aug-11,Travel & Subsistence,Informatics,REDFERN TRAVEL LTD,13457964,1688.24,
Department of Health,Department of Health,16-Aug-11,Travel & Subsistence,Informatics,REDFERN TRAVEL LTD,13457964,1793.94,
Department of Health,Department of Health,16-Aug-11,Travel & Subsistence,Informatics,REDFERN TRAVEL LTD,13457964,1917.36,
Department of Health,Department of Health,16-Aug-11,Travel & Subsistence,Informatics,HRG UK,13457965,1921.01,
Department of Health,Department of Health,16-Aug-11,Travel & Subsistence,Informatics,HRG UK,13457965,1967.27,
Department of Health,Department of Health,16-Aug-11,Travel & Subsistence,Informatics,HRG UK,13457965,2088.31,
Department of Health,Department of Health,16-Aug-11,Travel & Subsistence,Informatics,REDFERN TRAVEL LTD,13457964,2130.79,
Department of Health,Department of Health,16-Aug-11,Travel & Subsistence,Informatics,REDFERN TRAVEL LTD,13457964,2341.63,
Department of Health,Department of Health,16-Aug-11,Travel & Subsistence,Informatics,REDFERN TRAVEL LTD,13457964,2342.75,
Department of Health,Department of Health,16-Aug-11,Travel & Subsistence,Informatics,REDFERN TRAVEL LTD,13457964,2390.97,
Department of Health,Department of Health,16-Aug-11,Travel & Subsistence,Informatics,REDFERN TRAVEL LTD,13457964,2443.7,
Department of Health,Department of Health,16-Aug-11,Travel & Subsistence,Informatics,HRG UK,13457965,2477.57,
Department of Health,Department of Health,16-Aug-11,Travel & Subsistence,Informatics,HRG UK,13457965,2558.7,
Department of Health,Department of Health,16-Aug-11,Travel & Subsistence,Informatics,HRG UK,13457965,2577.37,
Department of Health,Department of Health,16-Aug-11,Travel & Subsistence,Informatics,REDFERN TRAVEL LTD,13457964,2935.28,
Department of Health,Department of Health,16-Aug-11,Travel & Subsistence,Informatics,REDFERN TRAVEL LTD,13457964,2952.93,
Department of Health,Department of Health,16-Aug-11,Travel & Subsistence,Informatics,REDFERN TRAVEL LTD,13457964,2955.24,
Department of Health,Department of Health,16-Aug-11,Travel & Subsistence,Informatics,REDFERN TRAVEL LTD,13457964,3022.86,
Department of Health,Department of Health,16-Aug-11,Travel & Subsistence,Informatics,REDFERN TRAVEL LTD,13457964,3148.95,
Department of Health,Department of Health,16-Aug-11,Travel & Subsistence,Informatics,HRG UK,13457965,3157.02,
Department of Health,Department of Health,16-Aug-11,Travel & Subsistence,Informatics,REDFERN TRAVEL LTD,13457964,3288.87,
Department of Health,Department of Health,16-Aug-11,Travel & Subsistence,Informatics,HRG UK,13457965,3560.36,
Department of Health,Department of Health,16-Aug-11,Travel & Subsistence,Informatics,REDFERN TRAVEL LTD,13457964,3678.06,
Department of Health,Department of Health,16-Aug-11,Travel & Subsistence,Informatics,HRG UK,13457965,4122.49,
Department of Health,Department of Health,16-Aug-11,Travel & Subsistence,Informatics,HRG UK,13457965,4145.87,
Department of Health,Department of Health,16-Aug-11,Travel & Subsistence,Informatics,REDFERN TRAVEL LTD,13457964,4463.38,
Department of Health,Department of Health,16-Aug-11,Travel & Subsistence,Informatics,REDFERN TRAVEL LTD,13457964,4550.12,
Department of Health,Department of Health,16-Aug-11,Travel & Subsistence,Informatics,HRG UK,13457965,5031,
Department of Health,Department of Health,16-Aug-11,Travel & Subsistence,Informatics,REDFERN TRAVEL LTD,13457964,5326.36,
Department of Health,Department of Health,16-Aug-11,Travel & Subsistence,Informatics,REDFERN TRAVEL LTD,13457964,6143.06,
Department of Health,Department of Health,16-Aug-11,Travel & Subsistence,Informatics,HRG UK,13457965,6921.56,
Department of Health,Department of Health,16-Aug-11,Travel & Subsistence,Informatics,REDFERN TRAVEL LTD,13457964,6931.61,
Department of Health,Department of Health,16/08/2011,Addition Clearing - IT,INFORMATICS,EGTON MEDICAL INFORMATION SYSTEMS LTD,IN47339-1,7914.73,
Department of Health,Department of Health,16-Aug-11,Travel & Subsistence,Informatics,REDFERN TRAVEL LTD,13457964,9955.03,
Department of Health,Department of Health,16/08/2011,Addition Clearing - SW LIC,INFORMATICS,EGTON MEDICAL INFORMATION SYSTEMS LTD,IN47339-1,13085.27,
Department of Health,Department of Health,16-Aug-11,Staff Consultancy & Suppt,Informatics,ASE CONSULTING LTD,13429478,24300,
Department of Health,Department of Health,16/08/2011,IT minor costs non capital,CDD CORPORATE DEVELOPMENT,CSC COMPUTER SCIENCES LTD,5201248352,27265.58,
Department of Health,Department of Health,16-Aug-11,Staff Consultancy & Suppt,Informatics,ASE CONSULTING LTD,13429479,27300,
Department of Health,Department of Health,16/08/2011,Secondees in invoiced costs,COMMISSIONING,SOMERSET PCT,5734051,27970.5,
Department of Health,Department of Health,16/08/2011,Outsourcing Contract,HPIH & SD,SAPIENT LTD,22395,28926,
Department of Health,Department of Health,16/08/2011,Storage costs,"PSF POLICY, STRATEGY & FINANCE",CONSILIENT HEALTH UK LTD,13492,"33,539.38",
Department of Health,Department of Health,16/08/2011,Outsourcing Contract,WORKFORCE,PICKER INSTITUTE EUROPE,IN100814,34402.9,
Department of Health,Department of Health,16/08/2011,Outsourcing Contract,WORKFORCE,APPOINTMENTS COMMISSION,1220002098,43979,
Department of Health,Department of Health,16/08/2011,Publicity & advertising,COMMUNICATIONS,CENTRAL OFFICE OF INFORMATION (COI),735989,43999.99,
Department of Health,Department of Health,16-Aug-11,Staff Consultancy & Suppt,Informatics,ASE CONSULTING LTD,13429479,45838,
Department of Health,Department of Health,16-Aug-11,Staff Consultancy & Suppt,Informatics,ASE CONSULTING LTD,13429479,47073,
Department of Health,Department of Health,16/08/2011,IT minor costs non capital,CDD CORPORATE DEVELOPMENT,CSC COMPUTER SCIENCES LTD,5201248355,55896.72,
Department of Health,Department of Health,16/08/2011,Addition Clearing - SW LIC,INFORMATICS,IN PRACTICE SYSTEMS LTD,373306,63905.35,
Department of Health,Department of Health,16-Aug-11,Legal / Prof Fees,Informatics,DLA PIPER UK LLP,13417696,104440.25,
Department of Health,Department of Health,16/08/2011,Addition Clearing - SW LIC,INFORMATICS,EGTON MEDICAL INFORMATION SYSTEMS LTD,IN47421-1,104483.49,
Department of Health,Department of Health,16/08/2011,IT minor costs non capital,WORKFORCE,CAMBRIDGESHIRE PCT,7700003322,112300,
Department of Health,Department of Health,16/08/2011,IT minor costs non capital,WORKFORCE,CAMBRIDGESHIRE PCT,7700003323,112300,
Department of Health,Department of Health,16/08/2011,IT minor costs non capital,WORKFORCE,CAMBRIDGESHIRE PCT,7700003384,112300,
Department of Health,Department of Health,16/08/2011,Outsourcing Contract,HPIH & SD,SAPIENT LTD,22557,147767.5,
Department of Health,Department of Health,16/08/2011,Addition Clearing - SW LIC,INFORMATICS,EGTON MEDICAL INFORMATION SYSTEMS LTD,IN47340-1,162823,
Department of Health,Department of Health,16-Aug-11,Legal / Prof Fees,Informatics,DLA PIPER UK LLP,13417695,354917.88,
Department of Health,Department of Health,16/08/2011,Addition Clearing - IT,"PSF POLICY, STRATEGY & FINANCE",AIRWAVE SOLUTIONS INTERNATIONAL LTD,0900000137-147,"466,077.97",
Department of Health,Department of Health,16/08/2011,Other Admin expenditure,CDD CORPORATE DEVELOPMENT,DEPARTMENT FOR WORK AND PENSIONS (DWP),2883499,543148.52,
Department of Health,Department of Health,16/08/2011,Other Admin expenditure,CDD CORPORATE DEVELOPMENT,DEPARTMENT FOR WORK AND PENSIONS (DWP),2883501,543148.52,
Department of Health,Department of Health,16/08/2011,Other Admin expenditure,CDD CORPORATE DEVELOPMENT,DEPARTMENT FOR WORK AND PENSIONS (DWP),2884382,543148.52,
Department of Health,Department of Health,16/08/2011,Other Admin expenditure,CDD CORPORATE DEVELOPMENT,DEPARTMENT FOR WORK AND PENSIONS (DWP),2889505,543148.52,
Department of Health,Department of Health,16/08/2011,Service charge,INFORMATICS,IN PRACTICE SYSTEMS LTD,373306,608845.38,
Department of Health,Department of Health,16/08/2011,Service charge,INFORMATICS,EGTON MEDICAL INFORMATION SYSTEMS LTD,IN47421-1,988101.45,
Department of Health,Department of Health,16/08/2011,Research & development,HPIH & SD,NATIONAL CENTRE FOR SOCIAL RESEARCH,611275302,1160006,
Department of Health,Department of Health,16/08/2011,Addition Clearing - IT,INFORMATICS,IN PRACTICE SYSTEMS LTD,373306,2092407.08,
Department of Health,Department of Health,16/08/2011,Outsourcing Contract,WORKFORCE,MCKESSON INFORMATION SOLUTIONS UK LTD,INV007223,2420599.5,
Department of Health,Department of Health,16/08/2011,Addition Clearing - IT,INFORMATICS,EGTON MEDICAL INFORMATION SYSTEMS LTD,IN47421-1,4918798.12,
Department of Health,Department of Health,17-Aug-11,External Consultancy Fees,Informatics,ASE CONSULTING LTD,13429476,5250,
Department of Health,Department of Health,17/08/2011,Professional fees,CDD CORPORATE DEVELOPMENT,DEPARTMENT FOR WORK AND PENSIONS (DWP),2886687,12424.37,
Department of Health,Department of Health,17/08/2011,Printing,COMMUNICATIONS,CENTRAL OFFICE OF INFORMATION (COI),736012,13140,
Department of Health,Department of Health,17/08/2011,Printing,COMMUNICATIONS,CENTRAL OFFICE OF INFORMATION (COI),736012,13140,
Department of Health,Department of Health,17-Aug-11,Staff Consultancy & Suppt,Informatics,ASE CONSULTING LTD,13429476,21850,
Department of Health,Department of Health,17-Aug-11,External Consultancy Fees,Informatics,GS1 UK,13483793,22719,
Department of Health,Department of Health,17-Aug-11,External Consultancy Fees,Informatics,GS1 UK,13483794,22719,
Department of Health,Department of Health,17/08/2011,Other staff benefits,"PSF POLICY, STRATEGY & FINANCE",HM REVENUE AND CUSTOMS (HMRC),1.80E+13,"30,750.00",
Department of Health,Department of Health,17/08/2011,Other Admin expenditure,CDD CORPORATE DEVELOPMENT,DEPARTMENT FOR WORK AND PENSIONS (DWP),2886712,32025.4,
Department of Health,Department of Health,17/08/2011,Publicity & advertising,COMMUNICATIONS,CENTRAL OFFICE OF INFORMATION (COI),735998,36992.5,
Department of Health,Department of Health,17/08/2011,Research & development,Research and Development,LONDON SCHOOL OF ECONOMICS,ERS-439065-50628,43333.72,
Department of Health,Department of Health,17-Aug-11,Staff Consultancy & Suppt,Informatics,ASE CONSULTING LTD,13429476,44879.5,
Department of Health,Department of Health,17/08/2011,Research & development,SOCIAL CARE,DEPARTMENT FOR EDUCATION (DFE),350000998,50000,
Department of Health,Department of Health,17-Aug-11,Staff Consultancy & Suppt,Informatics,ASE CONSULTING LTD,13429476,51450,
Department of Health,Department of Health,17/08/2011,Publicity & advertising,COMMUNICATIONS,CENTRAL OFFICE OF INFORMATION (COI),736011,63022.14,
Department of Health,Department of Health,17/08/2011,Research & development,Research and Development,LEEDS UNIVERSITY OF,ERS-439066-50626,63192,
Department of Health,Department of Health,17/08/2011,Professional fees,CDD CORPORATE DEVELOPMENT,DEPARTMENT FOR WORK AND PENSIONS (DWP),2886687,70996.42,
Department of Health,Department of Health,17/08/2011,Facilities management: contract,NHS FINANCE PERFORMANCE & OPERATIONS,DAVITT JONES BOULD LTD,CHAPS17/8/11,75000,
Department of Health,Department of Health,17-Aug-11,Staff Consultancy & Suppt,Informatics,ASE CONSULTING LTD,13429476,106950,
Department of Health,Department of Health,17/08/2011,Professional fees,CDD CORPORATE DEVELOPMENT,DEPARTMENT FOR WORK AND PENSIONS (DWP),2886688,109901.6,
Department of Health,Department of Health,17/08/2011,Research & development,Research and Development,UNIVERSITY COLLEGE LONDON (UCL),ERS-439071-50627,117489,
Department of Health,Department of Health,17/08/2011,Other Admin expenditure,CDD CORPORATE DEVELOPMENT,DEPARTMENT FOR WORK AND PENSIONS (DWP),2886686,126279.6,
Department of Health,Department of Health,17/08/2011,Publicity & advertising,COMMUNICATIONS,CENTRAL OFFICE OF INFORMATION (COI),736013,274999.98,
Department of Health,Department of Health,18/08/2011,Storage costs,"PSF POLICY, STRATEGY & FINANCE",MARTINDALE PHARMACEUTICALS LTD,A11969,"30,061.17",
Department of Health,Department of Health,18/08/2011,Outsourcing Contract,"PSF POLICY, STRATEGY & FINANCE",OXFORD UNIVERSITY,RTHP0/20078086,"33,000.00",
Department of Health,Department of Health,18-Aug-11,Computer Software/License,Informatics,PHOENIX SOFTWARE LTD,13475311,33744.96,
Department of Health,Department of Health,18/08/2011,Raw materials & consumables,"PSF POLICY, STRATEGY & FINANCE",SIGMA PHARMACEUTICALS PLC,I363571,"34,522.49",
Department of Health,Department of Health,18/08/2011,Storage costs,"PSF POLICY, STRATEGY & FINANCE",MARTINDALE PHARMACEUTICALS LTD,A11969,"50,601.16",
Department of Health,Department of Health,18/08/2011,Consultancy Other: not VAT recoverable,NHS MEDICAL DIRECTOR,MANCHESTER UNIVERSITY OF,14013263,53914,
Department of Health,Department of Health,18-Aug-11,Contr Other External,Informatics,CABLE & WIRELESS UK,13444597,62080.88,
Department of Health,Department of Health,18/08/2011,Raw materials & consumables,"PSF POLICY, STRATEGY & FINANCE",SIGMA PHARMACEUTICALS PLC,I343339,"121,252.19",
Department of Health,Department of Health,18/08/2011,Outsourcing Contract,NHS MEDICAL DIRECTOR,THE ROYAL COLLEGE OF PATHOLOGISTS,NLMC2-2,132840,
Department of Health,Department of Health,19/08/2011,Publicity & advertising,COMMUNICATIONS,CENTRAL OFFICE OF INFORMATION (COI),736065,20880.02,
Department of Health,Department of Health,19/08/2011,Outsourcing Contract,CDD CORPORATE DEVELOPMENT,CSC COMPUTER SCIENCES LTD,5201249341,24193.96,
Department of Health,Department of Health,19/08/2011,Secondees in invoiced costs,HPIH & SD,NORTH EAST SHA,503262,25428.81,
Department of Health,Department of Health,19/08/2011,Revenue Grants to Other Bodies,WORKFORCE,OFFICE OF THE HEALTH PROFESSIONS ADJUDICATOR OHPA,FUNDINGAUG2011,25458,
Department of Health,Department of Health,19/08/2011,Research & development,Research and Development,BELFAST QUEENS UNIVERSITY OF,ERS-439230-50642,33845,
Department of Health,Department of Health,19-Aug-11,Staff Consultancy & Suppt,Informatics,ASE CONSULTING LTD,13466266,42484.5,
Department of Health,Department of Health,19/08/2011,Outsourcing Contract,WORKFORCE,MOUCHEL MANAGEMENT CONSULTING LTD,90065269,44750,
Department of Health,Department of Health,19-Aug-11,Staff Consultancy & Suppt,Informatics,ASE CONSULTING LTD,13466266,45940.5,
Department of Health,Department of Health,19/08/2011,Service charge,INFORMATICS,ATOS ORIGIN IT SERVICES UK LTD,5584087899,68609.67,
Department of Health,Department of Health,19/08/2011,Addition Clearing - SW LIC,INFORMATICS,ATOS ORIGIN IT SERVICES UK LTD,5584087898,100979,
Department of Health,Department of Health,19/08/2011,Other Admin expenditure,NHS MEDICAL DIRECTOR,GLOUCESTERSHIRE HOSPITALS NHS FOUNDATION TRUST,2001152,150297.52,
Department of Health,Department of Health,19/08/2011,Outsourcing Contract,NHS MEDICAL DIRECTOR,YORKSHIRE & THE HUMBER SHA,19595829,185175,
Department of Health,Department of Health,19-Aug-11,Legal / Prof Fees,Informatics,DLA PIPER UK LLP,13417699,218717.4,
Department of Health,Department of Health,19/08/2011,Other programme expenditure,HPIH & SD,HEALTH PROTECTION AGENCY (HPA),5318022,300000,
Department of Health,Department of Health,19/08/2011,Admin Revenue Grant-in-Aid ENDPBs,COMMISSIONING,MONITOR INDEPENDENT REGULATOR OF NHS FOUNDATION TRUSTS,IR OF NHS AUGUST 2011,1400000,
Department of Health,Department of Health,19/08/2011,CASH FUNDING Rev Inside RAB,NHS FC,CROYDON PCT,HAFS-11237,"13,000,000",
Department of Health,Department of Health,22/08/2011,Research & development,Research and Development,LEEDS TEACHING HOSPITAL NHS TRUST,ERS-439324-50662,23978,
Department of Health,Department of Health,22/08/2011,Research & development,Research and Development,LIVERPOOL UNIVERSITY OF,ERS-439320-50667,25000,
Department of Health,Department of Health,22-Aug-11,Phone Rental and Calls,Informatics,BT PLC,13503614,25368.51,
Department of Health,Department of Health,22/08/2011,Policy Payments,Research and Development,SOUTH EAST COAST SHA,15112409,26493,
Department of Health,Department of Health,22-Aug-11,Staff Consultancy & Suppt,Informatics,PA CONSULTING SERVICES LTD,13483786,32000,
Department of Health,Department of Health,22/08/2011,Professional fees,COMMISSIONING,DELOITTE LLP,1110687431,37234,
Department of Health,Department of Health,22/08/2011,Professional fees,SOCIAL CARE,TREASURY SOLICITORS DEPARTMENT (TSOL),111272,37749.5,
Department of Health,Department of Health,22/08/2011,Printing,COMMUNICATIONS,CENTRAL OFFICE OF INFORMATION (COI),736084,38500,
Department of Health,Department of Health,22/08/2011,Research & development,HPIH & SD,MEDICAL RESEARCH COUNCIL MRC,7050002866,62848,
Department of Health,Department of Health,22/08/2011,Publicity & advertising,COMMUNICATIONS,CENTRAL OFFICE OF INFORMATION (COI),736071,63405,
Department of Health,Department of Health,22/08/2011,Research & development,HPIH & SD,IFR ENTERPRISES LTD,INV0002676,65103,
Department of Health,Department of Health,22/08/2011,Outsourcing Contract,HPIH & SD,MULTI RESOURCE MARKETING LTD,122010,69464.79,
Department of Health,Department of Health,22/08/2011,Policy Payments,Research and Development,EAST MIDLANDS SHA,11011797,80397.15,
Department of Health,Department of Health,22/08/2011,Outsourcing Contract,NHS MEDICAL DIRECTOR,EAST MIDLANDS SHA,11011777,104221,
Department of Health,Department of Health,22/08/2011,Policy Payments,Research and Development,APPOINTING AUTHORITY FOR PHASE 1 ETHICS COMMITTEES (AAPEC),AAPEC/DH001,150000,
Department of Health,Department of Health,22/08/2011,Research & development,Research and Development,ASHRIDGE CONSULTING LTD,ERS-439314-50663,161851.21,
Department of Health,Department of Health,22/08/2011,Research & development,Research and Development,YORKSHIRE & THE HUMBER SHA,ERS-439322-50661,209045.14,
Department of Health,Department of Health,22/08/2011,Grants to non profit institutions (CUR),COMMISSIONING,FOUNDATION TRUST NETWORK,ERS-439356-50681,220000,
Department of Health,Department of Health,22/08/2011,Research & development,Research and Development,LEEDS TEACHING HOSPITAL NHS TRUST,ERS-439324-50662,230852,
Department of Health,Department of Health,22/08/2011,Outsourcing Contract,HPIH & SD,VERTEX DATA SCIENCE LTD,FI0407806,264722.65,
Department of Health,Department of Health,22/08/2011,Grants to non profit institutions (CUR),SOCIAL CARE,SOCIAL CARE INSTITUTE FOR EXCELLENCE (SCIE),ERS-439378-50701,500000,
Department of Health,Department of Health,22/08/2011,Additions FT Financing Facility Loans,NHS FC,BIRMINGHAM AND SOLIHULL MENTAL HEALTH NHS FOUNDATION TRUST,HAFS-11236,"3,151,000",
Department of Health,Department of Health,23/08/2011,Professional fees,CDD CORPORATE DEVELOPMENT,DEPARTMENT FOR WORK AND PENSIONS (DWP),2882343,4300,
Department of Health,Department of Health,23/08/2011,Addition Clearing - SW LIC,INFORMATICS,ATOS ORIGIN IT SERVICES UK LTD,5584087897,5496.31,
Department of Health,Department of Health,23/08/2011,Professional fees,CDD CORPORATE DEVELOPMENT,DEPARTMENT FOR WORK AND PENSIONS (DWP),2882343,21500,
Department of Health,Department of Health,23/08/2011,Professional fees,COMMISSIONING,DELOITTE LLP,1110701945,28637,
Department of Health,Department of Health,23/08/2011,Professional fees,COMMISSIONING,PRICEWATERHOUSECOOPERS LLP,1353649552,28844,
Department of Health,Department of Health,23/08/2011,Outsourcing Contract,HPIH & SD,SAPIENT LTD,22612,30660,
Department of Health,Department of Health,23/08/2011,Other Admin expenditure,NHS MEDICAL DIRECTOR,GLOUCESTERSHIRE HOSPITALS NHS FOUNDATION TRUST,2001206,50651.03,
Department of Health,Department of Health,23/08/2011,Professional fees,WORKFORCE,GOVERNMENT ACTUARYS DEPARTMENT (GAD),SINV/00015099,132581.33,
Department of Health,Department of Health,23/08/2011,Outsourcing Contract,HPIH & SD,DURHAM UNIVERSITY OF,230516,168600,
Department of Health,Department of Health,23/08/2011,Outsourcing Contract,CDD CORPORATE DEVELOPMENT,CSC COMPUTER SCIENCES LTD,5201251142,216020.83,
Department of Health,Department of Health,23/08/2011,Outsourcing Contract,HPIH & SD,BIRMINGHAM WOMENS NHS FOUNDATION TRUST,OP/I117143,218100,
Department of Health,Department of Health,23/08/2011,Service charge,INFORMATICS,ATOS ORIGIN IT SERVICES UK LTD,5584087897,1388499.33,
Department of Health,Department of Health,23/08/2011,Other programme expenditure,HPIH & SD,SKIPTON FUND LTD,003/11-12,10000000,
Department of Health,Department of Health,24/08/2011,Travel & subsistence secondees,NHS MEDICAL DIRECTOR,SALFORD ROYAL NHS FOUNDATION TRUST,1000120125,183.29,
Department of Health,Department of Health,24/08/2011,Cleaning: contract,CDD CORPORATE DEVELOPMENT,EMCOR FACILITIES SERVICES LTD,00204701RI,1617.63,
Department of Health,Department of Health,24/08/2011,Cleaning: contract,CDD CORPORATE DEVELOPMENT,EMCOR FACILITIES SERVICES LTD,00204701RI,1703.56,
Department of Health,Department of Health,24/08/2011,Facilities management: contract,CDD CORPORATE DEVELOPMENT,EMCOR FACILITIES SERVICES LTD,00204701RI,1835.34,
Department of Health,Department of Health,24/08/2011,Building repairs & maintenance,CDD CORPORATE DEVELOPMENT,EMCOR FACILITIES SERVICES LTD,00204701RI,2520.24,
Department of Health,Department of Health,24/08/2011,Building repairs & maintenance,CDD CORPORATE DEVELOPMENT,EMCOR FACILITIES SERVICES LTD,00204701RI,2543.68,
Department of Health,Department of Health,24/08/2011,Facilities management: contract,CDD CORPORATE DEVELOPMENT,EMCOR FACILITIES SERVICES LTD,00204701RI,3524.46,
Department of Health,Department of Health,24/08/2011,Facilities management: contract,CDD CORPORATE DEVELOPMENT,EMCOR FACILITIES SERVICES LTD,00204701RI,6670.52,
Department of Health,Department of Health,24/08/2011,Facilities management: contract,CDD CORPORATE DEVELOPMENT,EMCOR FACILITIES SERVICES LTD,00204701RI,7099.81,
Department of Health,Department of Health,24/08/2011,Security: contract,CDD CORPORATE DEVELOPMENT,EMCOR FACILITIES SERVICES LTD,00204701RI,7661,
Department of Health,Department of Health,24/08/2011,Cleaning: contract,CDD CORPORATE DEVELOPMENT,EMCOR FACILITIES SERVICES LTD,00204701RI,11653.11,
Department of Health,Department of Health,24/08/2011,Facilities management: contract,CDD CORPORATE DEVELOPMENT,EMCOR FACILITIES SERVICES LTD,00204701RI,13560.96,
Department of Health,Department of Health,24/08/2011,Security: contract,CDD CORPORATE DEVELOPMENT,EMCOR FACILITIES SERVICES LTD,00204701RI,16479.08,
Department of Health,Department of Health,24/08/2011,Cleaning: contract,CDD CORPORATE DEVELOPMENT,EMCOR FACILITIES SERVICES LTD,00204701RI,16873.97,
Department of Health,Department of Health,24/08/2011,Security: contract,CDD CORPORATE DEVELOPMENT,EMCOR FACILITIES SERVICES LTD,00204701RI,16961.89,
Department of Health,Department of Health,24/08/2011,Secondees in invoiced costs,NHS MEDICAL DIRECTOR,SALFORD ROYAL NHS FOUNDATION TRUST,1000121433,22249.5,
Department of Health,Department of Health,24/08/2011,Travel & subsistence secondees,NHS MEDICAL DIRECTOR,SALFORD ROYAL NHS FOUNDATION TRUST,1000121433,22249.5,
Department of Health,Department of Health,24/08/2011,Building repairs & maintenance,CDD CORPORATE DEVELOPMENT,EMCOR FACILITIES SERVICES LTD,00204701RI,23201.81,
Department of Health,Department of Health,24/08/2011,Cleaning: contract,CDD CORPORATE DEVELOPMENT,EMCOR FACILITIES SERVICES LTD,00204701RI,24705.75,
Department of Health,Department of Health,24/08/2011,Building repairs & maintenance,CDD CORPORATE DEVELOPMENT,EMCOR FACILITIES SERVICES LTD,00204701RI,29484.45,
Department of Health,Department of Health,24/08/2011,Building repairs & maintenance,CDD CORPORATE DEVELOPMENT,EMCOR FACILITIES SERVICES LTD,00204701RI,31388.28,
Department of Health,Department of Health,24/08/2011,Building repairs & maintenance,CDD CORPORATE DEVELOPMENT,EMCOR FACILITIES SERVICES LTD,00204701RI,32333.83,
Department of Health,Department of Health,24/08/2011,Publicity & advertising,COMMUNICATIONS,CENTRAL OFFICE OF INFORMATION (COI),736116,32467.5,
Department of Health,Department of Health,24/08/2011,Rates,CDD CORPORATE DEVELOPMENT,PENDLE BOROUGH COUNCIL,7213358APR-MAR2012,37671,
Department of Health,Department of Health,24/08/2011,Security: contract,CDD CORPORATE DEVELOPMENT,EMCOR FACILITIES SERVICES LTD,00204701RI,39180.93,
Department of Health,Department of Health,24-Aug-11,Staff Consultancy & Suppt,Informatics,CAPGEMINI UK PLC,13513680,39339,
Department of Health,Department of Health,24/08/2011,Secondees in invoiced costs,NHS MEDICAL DIRECTOR,SALFORD ROYAL NHS FOUNDATION TRUST,1000120125,43333,
Department of Health,Department of Health,24/08/2011,Travel -Trains,CDD CORPORATE DEVELOPMENT,FCM TRAVEL SOLUTIONS,1049604844,44257.4,
Department of Health,Department of Health,24/08/2011,Admin Revenue Grant-in-Aid ENDPBs,HPIH & SD,HUMAN TISSUE AUTHORITY (HTA),NL/033,238500,
Department of Health,Department of Health,25/08/2011,Consultancy/Professional Advice,"PSF POLICY, STRATEGY & FINANCE",DLA PIPER UK LLP,57182395,"25,811.40",
Department of Health,Department of Health,25-Aug-11,Staff Consultancy & Suppt,Informatics,PA CONSULTING SERVICES LTD,13483788,25900,
Department of Health,Department of Health,25-Aug-11,Staff Consultancy & Suppt,Informatics,PA CONSULTING SERVICES LTD,13483789,26250,
Department of Health,Department of Health,25/08/2011,Addition Clearing - IT,INFORMATICS,CSC COMPUTER SCIENCES LTD,5201243631,26281.69,
Department of Health,Department of Health,25-Aug-11,Staff Consultancy & Suppt,Informatics,CAPGEMINI UK PLC,13505078,27607,
Department of Health,Department of Health,25/08/2011,Research & development,Research and Development,CANCER RESEARCH UK,ERS-439570-50739,31136.63,
Department of Health,Department of Health,25/08/2011,Research & development,Research and Development,BRISTOL UNIVERSITY OF,ERS-439574-50730,31967,
Department of Health,Department of Health,25/08/2011,Research & development,Research and Development,LEEDS UNIVERSITY OF,ERS-439575-50734,33497,
Department of Health,Department of Health,25/08/2011,Professional fees,"PSF POLICY, STRATEGY & FINANCE",DLA PIPER UK LLP,57182395,"34,267.07",
Department of Health,Department of Health,25/08/2011,Research & development,Research and Development,RAND EUROPE CAMBRIDGE LTD,ERS-439571-50728,34727.19,
Department of Health,Department of Health,25/08/2011,Research & development,Research and Development,LONDON SCHOOL OF HYGIENE AND TROPICAL MEDICINE,ERS-439559-50733,36042,
Department of Health,Department of Health,25/08/2011,Utilities,CDD CORPORATE DEVELOPMENT,DEPARTMENT FOR WORK AND PENSIONS (DWP),5024217,40526.53,
Department of Health,Department of Health,25/08/2011,Research & development,Research and Development,NOTTINGHAM UNIVERSITY OF,ERS-439569-50736,44679,
Department of Health,Department of Health,25/08/2011,Secondees in invoiced costs,NHS MEDICAL DIRECTOR,KINGS COLLEGE LONDON,SINV1035974,50828.34,
Department of Health,Department of Health,25/08/2011,Research & development,Research and Development,CAMBRIDGE UNIVERSITY OF,ERS-439573-50731,53975,
Department of Health,Department of Health,25/08/2011,Research & development,Research and Development,ABERDEEN UNIVERSITY OF,ERS-439578-50729,55523,
Department of Health,Department of Health,25-Aug-11,Staff Consultancy & Suppt,Informatics,CAPGEMINI UK PLC,13505078,57340.5,
Department of Health,Department of Health,25/08/2011,Research & development,Research and Development,UNIVERSITY HOSPITALS BRISTOL NHS FOUNDATION TRUST,ERS-439562-50722,60103,
Department of Health,Department of Health,25/08/2011,Research & development,Research and Development,MANCHESTER UNIVERSITY OF,ERS-439568-50735,68637.65,
Department of Health,Department of Health,25/08/2011,Contactor/ Staff Subsitution,COMMISSIONING,LONDON SCHOOL OF HYGIENE AND TROPICAL MEDICINE,50020131,70276.07,
Department of Health,Department of Health,25/08/2011,Secondees in invoiced costs,HPIH & SD,NORTH EAST SHA,503377,71742.03,
Department of Health,Department of Health,25/08/2011,Secondees in invoiced costs,HPIH & SD,NORTH EAST SHA,503377,72890.14,
Department of Health,Department of Health,25/08/2011,Research & development,Research and Development,GUYS AND ST THOMAS NHS FOUNDATION TRUST,ERS-439572-50724,77978,
Department of Health,Department of Health,25-Aug-11,Contr Other External,Informatics,SPRINT INTERNATIONAL EXPRESS LTD,13060673,78760.91,
Department of Health,Department of Health,25/08/2011,Service charge,INFORMATICS,CSC COMPUTER SCIENCES LTD,5201243631,88659.14,
Department of Health,Department of Health,25/08/2011,Research & development,Research and Development,GREATER MANCHESTER WEST MENTAL HEALTH NHS FOUNDATION TRUST,ERS-439576-50727,107590,
Department of Health,Department of Health,25/08/2011,Rates,CDD CORPORATE DEVELOPMENT,DEPARTMENT FOR WORK AND PENSIONS (DWP),5024217,112233.6,
Department of Health,Department of Health,25/08/2011,Other programme expenditure,SOCIAL CARE,DEPARTMENT FOR EDUCATION (DFE),350001345,334515,
Department of Health,Department of Health,25/08/2011,Rent of Land & Buildings (non-PFI operating lease),CDD CORPORATE DEVELOPMENT,DEPARTMENT FOR WORK AND PENSIONS (DWP),5024217,497386.23,
Department of Health,Department of Health,25-Aug-11,Contr Other External,Informatics,CABLE & WIRELESS UK,13402532,597040,
Department of Health,Department of Health,26/08/2011,Secondees in invoiced costs,"PSF POLICY, STRATEGY & FINANCE",ANGLIA SUPPORT PARTNERSHIP (ASP),1100005951,"26,989.32",
Department of Health,Department of Health,26/08/2011,Outsourcing Contract,"PSF POLICY, STRATEGY & FINANCE",CSC COMPUTER SCIENCES LTD,5201251600,"27,382.50",
Department of Health,Department of Health,26-Aug-11,Contr Other External,Informatics,SPRINT INTERNATIONAL EXPRESS LTD,13534386,34669.92,
Department of Health,Department of Health,26/08/2011,Professional fees,"PSF POLICY, STRATEGY & FINANCE",DLA PIPER UK LLP,57193345,"37,453.51",
Department of Health,Department of Health,26-Aug-11,Contr Other External,Informatics,SPRINT INTERNATIONAL EXPRESS LTD,13151469,45467.19,
Department of Health,Department of Health,26/08/2011,Secondees in invoiced costs,WORKFORCE,SHEFFIELD PCT,2100051277,49531,
Department of Health,Department of Health,26/08/2011,Rent of Land & Buildings (non-PFI operating lease),NHS FINANCE PERFORMANCE & OPERATIONS,THOMPSONS,1029/1029/09/08/11,51300,
Department of Health,Department of Health,26/08/2011,Research & development,HPIH & SD,TNS UK LTD,137502,65280,
Department of Health,Department of Health,26/08/2011,Contactor/ Staff Subsitution,COMMISSIONING,NORTHGATE UK LTD,91174114,144207.36,
Department of Health,Department of Health,26/08/2011,IT minor costs non capital,CDD CORPORATE DEVELOPMENT,CSC COMPUTER SCIENCES LTD,5201251601,624667.72,
Department of Health,Department of Health,26/08/2011,Additions-PDC temporary,NHS FC,EPSOM & ST HELIER UNIVERSITY HOSPITAL NHS TRUST,HAFS-11406,"2,500,000",
Department of Health,Department of Health,30/08/2011,Research & development,Research and Development,YORK UNIVERSITY OF,ERS-439735-50779,121.9,
Department of Health,Department of Health,30-Aug-11,Staff Consultancy & Suppt,Informatics,PARITY RESOURCES LTD,13505079,1314,
Department of Health,Department of Health,30/08/2011,Research & development,Research and Development,ABERDEEN UNIVERSITY OF,ERS-439696-50753,4016,
Department of Health,Department of Health,30/08/2011,Research & development,Research and Development,WARWICK UNIVERSITY OF,ERS-439734-50778,4361,
Department of Health,Department of Health,30/08/2011,Research & development,Research and Development,CARDIFF UNIVERSITY,ERS-439704-50759,5127,
Department of Health,Department of Health,30/08/2011,Research & development,Research and Development,ABERDEEN UNIVERSITY OF,ERS-439696-50753,5916,
Department of Health,Department of Health,30/08/2011,Research & development,Research and Development,ABERDEEN UNIVERSITY OF,ERS-439696-50753,8458,
Department of Health,Department of Health,30/08/2011,Research & development,Research and Development,MEDICAL RESEARCH COUNCIL MRC,ERS-439713-50768,8665,
Department of Health,Department of Health,30/08/2011,Research & development,Research and Development,BIRMINGHAM UNIVERSITY OF,ERS-439699-50756,9691,
Department of Health,Department of Health,30/08/2011,Research & development,Research and Development,LEEDS UNIVERSITY OF,ERS-439711-50766,11734,
Department of Health,Department of Health,30/08/2011,Research & development,Research and Development,SWANSEA UNIVERSITY,ERS-439728-50777,12547,
Department of Health,Department of Health,30/08/2011,Research & development,Research and Development,YORK UNIVERSITY OF,ERS-439735-50779,13358,
Department of Health,Department of Health,30/08/2011,Research & development,Research and Development,BIRMINGHAM UNIVERSITY OF,ERS-439699-50756,13546,
Department of Health,Department of Health,30/08/2011,Research & development,Research and Development,OXFORD UNIVERSITY,ERS-439720-50771,13829,
Department of Health,Department of Health,30/08/2011,Research & development,Research and Development,BIRMINGHAM UNIVERSITY OF,ERS-439699-50756,14030,
Department of Health,Department of Health,30/08/2011,Research & development,Research and Development,UNIVERSITY HOSPITALS BRISTOL NHS FOUNDATION TRUST,ERS-439732-50741,15099,
Department of Health,Department of Health,30/08/2011,Research & development,Research and Development,UNIVERSITY HOSPITALS BRISTOL NHS FOUNDATION TRUST,ERS-439732-50741,18320,
Department of Health,Department of Health,30/08/2011,Research & development,Research and Development,IMPERIAL COLLEGE LONDON,ERS-439709-50764,19576,
Department of Health,Department of Health,30/08/2011,Research & development,Research and Development,BIRMINGHAM UNIVERSITY OF,ERS-439699-50756,20310,
Department of Health,Department of Health,30/08/2011,Research & development,Research and Development,WARWICK UNIVERSITY OF,ERS-439734-50778,20436,
Department of Health,Department of Health,30/08/2011,Research & development,Research and Development,QUEEN MARY AND WESTFIELD COLLEGE,ERS-439723-50772,20976,
Department of Health,Department of Health,30/08/2011,Research & development,Research and Development,BIRMINGHAM UNIVERSITY OF,ERS-439699-50756,22262,
Department of Health,Department of Health,30/08/2011,Research & development,Research and Development,SHEFFIELD UNIVERSITY OF,ERS-439725-50773,23188,
Department of Health,Department of Health,30/08/2011,Research & development,Research and Development,MEDICAL RESEARCH COUNCIL MRC,ERS-439713-50768,24108,
Department of Health,Department of Health,30/08/2011,Research & development,Research and Development,QUEEN MARY AND WESTFIELD COLLEGE,ERS-439723-50772,24327,
Department of Health,Department of Health,30/08/2011,Research & development,Research and Development,CAMBRIDGE UNIVERSITY OF,ERS-439703-50758,24612,
Department of Health,Department of Health,30/08/2011,Research & development,Research and Development,YORK UNIVERSITY OF,ERS-439735-50779,25315,
Department of Health,Department of Health,30/08/2011,Research & development,Research and Development,TEESSIDE UNIVERSITY OF,ERS-439729-50776,25332,
Department of Health,Department of Health,30/08/2011,Research & development,Research and Development,WARWICK UNIVERSITY OF,ERS-439734-50778,26028,
Department of Health,Department of Health,30/08/2011,Research & development,Research and Development,SHEFFIELD UNIVERSITY OF,ERS-439725-50773,26074,
Department of Health,Department of Health,30/08/2011,Research & development,Research and Development,YORK UNIVERSITY OF,ERS-439735-50779,27032,
Department of Health,Department of Health,30/08/2011,Research & development,Research and Development,CARDIFF UNIVERSITY,ERS-439704-50759,29646,
Department of Health,Department of Health,30-Aug-11,Staff Consultancy & Suppt,Informatics,PARITY RESOURCES LTD,13505079,30098.41,
Department of Health,Department of Health,30/08/2011,Research & development,Research and Development,IMPERIAL COLLEGE LONDON,ERS-439709-50764,30559,
Department of Health,Department of Health,30/08/2011,Research & development,Research and Development,ICNARC VOLUNTARY ORGANISATION,ERS-439708-50763,30663,
Department of Health,Department of Health,30/08/2011,Research & development,Research and Development,SWANSEA UNIVERSITY,ERS-439728-50777,31745,
Department of Health,Department of Health,30/08/2011,Research & development,Research and Development,UNIVERSITY COLLEGE LONDON (UCL),ERS-439730-50767,32665,
Department of Health,Department of Health,30/08/2011,Research & development,Research and Development,DERBY HOSPITALS NHS FOUNDATION TRUST,ERS-439736-50748,33048,
Department of Health,Department of Health,30/08/2011,Research & development,Research and Development,ABERDEEN UNIVERSITY OF,ERS-439696-50753,33456,
Department of Health,Department of Health,30/08/2011,Research & development,Research and Development,DUNDEE UNIVERSITY OF,ERS-439705-50760,34308,
Department of Health,Department of Health,30/08/2011,Research & development,Research and Development,SUSSEX UNIVERSITY OF,ERS-439727-50775,34632,
Department of Health,Department of Health,30/08/2011,Research & development,Research and Development,IMPERIAL COLLEGE LONDON,ERS-439709-50764,34795,
Department of Health,Department of Health,30/08/2011,Research & development,Research and Development,CAMBRIDGE UNIVERSITY OF,ERS-439703-50758,35057,
Department of Health,Department of Health,30/08/2011,Research & development,Research and Development,BRISTOL UNIVERSITY OF,ERS-439700-50757,35948,
Department of Health,Department of Health,30/08/2011,Research & development,Research and Development,LEEDS UNIVERSITY OF,ERS-439711-50766,36623,
Department of Health,Department of Health,30/08/2011,Research & development,Research and Development,BRISTOL UNIVERSITY OF,ERS-439700-50757,37010,
Department of Health,Department of Health,30/08/2011,Research & development,Research and Development,SWANSEA UNIVERSITY,ERS-439728-50777,37260,
Department of Health,Department of Health,30/08/2011,Research & development,Research and Development,WARWICK UNIVERSITY OF,ERS-439734-50778,38407,
Department of Health,Department of Health,30/08/2011,Research & development,Research and Development,UNIVERSITY COLLEGE LONDON HOSPITALS NHS FOUNDATION TRUST,ERS-439731-50745,41312,
Department of Health,Department of Health,30/08/2011,Secondees in invoiced costs,HPIH & SD,SOUTH EAST COAST AMBULANCE SERVICE NHS FOUNDATION TRUST,7869381,43231,
Department of Health,Department of Health,30/08/2011,Research & development,Research and Development,NEWCASTLE UNIVERSITY,ERS-439715-50769,43667,
Department of Health,Department of Health,30/08/2011,Research & development,Research and Development,OXFORD UNIVERSITY,ERS-439720-50771,48859,
Department of Health,Department of Health,30/08/2011,Research & development,Research and Development,CAMBRIDGE UNIVERSITY OF,ERS-439703-50758,52725,
Department of Health,Department of Health,30/08/2011,Consultancy/Professional Advice,SOCIAL CARE,NATIONAL CENTRE FOR SOCIAL RESEARCH,811623004,61520,
Department of Health,Department of Health,30/08/2011,Research & development,Research and Development,BRISTOL UNIVERSITY OF,ERS-439700-50757,64142,
Department of Health,Department of Health,30/08/2011,Research & development,Research and Development,OXFORD UNIVERSITY,ERS-439720-50771,68207,
Department of Health,Department of Health,30/08/2011,Outsourcing Contract,SOCIAL CARE,LANCASHIRE CONSTABULARY,7200001596,80000,
Department of Health,Department of Health,30/08/2011,Research & development,Research and Development,OXFORD UNIVERSITY,ERS-439720-50771,94073,
Department of Health,Department of Health,30/08/2011,Research & development,Research and Development,OXFORD UNIVERSITY,ERS-439720-50771,102780,
Department of Health,Department of Health,30/08/2011,Research & development,Research and Development,QUANTA FLUID SOLUTIONS LTD,5,133100,
Department of Health,Department of Health,31/08/2011,Service charge,NHS FINANCE PERFORMANCE & OPERATIONS,Amicus Horizon Group Ltd,233179,8125.04,
Department of Health,Department of Health,31/08/2011,Rent of Land & Buildings (non-PFI operating lease),NHS FINANCE PERFORMANCE & OPERATIONS,Amicus Horizon Group Ltd,233179,18270,
Department of Health,Department of Health,31/08/2011,Outsourcing Contract,WORKFORCE,MCKESSON INFORMATION SOLUTIONS UK LTD,INV007230,28324.56,
Department of Health,Department of Health,31/08/2011,Contactor/ Staff Subsitution,COMMISSIONING,NORTHGATE UK LTD,91174114VAT ONLY,28841.47,
Department of Health,Department of Health,31/08/2011,Research & development,Research and Development,NHS CONFEDERATION,ERS-439921-50783,30000,
Department of Health,Department of Health,31/08/2011,Publicity & advertising,COMMUNICATIONS,CENTRAL OFFICE OF INFORMATION (COI),736183,31980,
Department of Health,Department of Health,31/08/2011,Research & development,Research and Development,EXETER UNIVERSITY OF,ERS-439922-50784,33275,
Department of Health,Department of Health,31/08/2011,Outsourcing Contract,WORKFORCE,MCKESSON INFORMATION SOLUTIONS UK LTD,INV007238,59034.82,
Department of Health,Department of Health,31/08/2011,Printing,NHS MEDICAL DIRECTOR,CENTRAL OFFICE OF INFORMATION (COI),736186,64565,
Department of Health,Department of Health,31/08/2011,Research & development,Research and Development,LONDON SCHOOL OF HYGIENE AND TROPICAL MEDICINE,ERS-439919-50785,73515,
Department of Health,Department of Health,31/08/2011,Outsourcing Contract,WORKFORCE,MCKESSON INFORMATION SOLUTIONS UK LTD,INV007229,77939.04,
Department of Health,Department of Health,31/08/2011,Research & development,Research and Development,NORTH EAST SHA,ERS-439920-50781,163974.17,
Department of Health,Department of Health,31/08/2011,Outsourcing Contract,WORKFORCE,CWM TAF HEALTH BOARD,49958,235000,
Department of Health,Department of Health,31/08/2011,Addition Clearing - IT,WORKFORCE,MCKESSON INFORMATION SOLUTIONS UK LTD,INV007240,259570,
Department of Health,Department of Health,31/08/2011,Addition Clearing - IT,WORKFORCE,MCKESSON INFORMATION SOLUTIONS UK LTD,INV007239,444144.33,
